Department Family,Entity,Date Paid,Expense Type,Expense Area,Supplier,Transaction Number,Amount (�),Supplier VAT Registration Number
BEIS,Met Office,2021-05-12,08 SOFTWARE LICENCES,TECHNOLOGY AND CIO,"PHOENIX SOFTWARE INTERNATIONAL, INC",10117,6830.18,-
BEIS,Met Office,2021-05-05,11 SERVICES,TECHNOLOGY AND CIO,AMAZON WEB SERVICES INC.,10185,94048.06,N/A
BEIS,Met Office,2021-05-05,11 SERVICES,TECHNOLOGY AND CIO,AMAZON WEB SERVICES INC.,10186,10883.94,N/A
BEIS,Met Office,2021-05-05,11 SERVICES,PROGRAMMES,UCAR INCOMING PAYMENTS,10188,15560.36,-
BEIS,Met Office,2021-05-12,11 SERVICES,PROGRAMMES,UCAR INCOMING PAYMENTS,10198,126800.75,-
BEIS,Met Office,2021-05-19,11 SERVICES,SERVICES,NSSL GLOBAL LTD,10227,50.54,725151948
BEIS,Met Office,2021-05-19,11 SERVICES,SERVICES,NSSL GLOBAL LTD,10228,50.54,725151948
BEIS,Met Office,2021-05-05,12 INTERNATIONAL,MARKETS,REDACTED PERSONAL DATA,10235,2458.89,-
BEIS,Met Office,2021-05-05,12 INTERNATIONAL,MARKETS,REDACTED PERSONAL DATA,10235,54.58,-
BEIS,Met Office,2021-05-12,07 EQUIPMENT,MARKETS,SWALE TECHNOLOGIES LTD,10236,173640.77,530846451
BEIS,Met Office,2021-05-12,11 SERVICES,SERVICES,METOCEAN TELEMATICS LTD,10239,402.97,-
BEIS,Met Office,2021-05-19,11 SERVICES,MARKETS,"BASILIO SOZINHO CUBULA SERVI�OS, E.I.",10255,3502.58,N/A
BEIS,Met Office,2021-05-05,STOCK,SERVICES,Vaisala Oyj,22471,0,FI01244162
BEIS,Met Office,2021-05-05,STOCK,SERVICES,Vaisala Oyj,22471,0,FI01244162
BEIS,Met Office,2021-05-05,TRADE CREDITORS,SERVICES,Vaisala Oyj,22471,44924.99,FI01244162
BEIS,Met Office,2021-05-05,TRADE CREDITORS,SERVICES,Vaisala Oyj,22471,11573.88,FI01244162
BEIS,Met Office,2021-05-05,11 SERVICES,SERVICES,"EUTELSAT, S.A.",22490,5835.18,-
BEIS,Met Office,2021-05-12,11 SERVICES,SCIENCE,METEO-FRANCE AGENCE COMPTABLE SEC D2C,22528,3517.94,FR03180060030
BEIS,Met Office,2021-05-12,REVENUE,SCIENCE,Smhi,22535,1971.78,SE202100069601
BEIS,Met Office,2021-05-12,08 SOFTWARE LICENCES,MARKETS,"IBL SOFTWARE ENGINEERING, SPOL S.R.O.",22536,6846.96,SK2020241883
BEIS,Met Office,2021-05-12,11 SERVICES,SCIENCE,National Oceanography Centre,22569,41100.1,GB 338 5487 64
BEIS,Met Office,2021-05-26,STOCK,SERVICES,VAISALA LTD,22570,0,336100011
BEIS,Met Office,2021-05-26,TRADE CREDITORS,SERVICES,VAISALA LTD,22570,5710.13,336100011
BEIS,Met Office,2021-05-26,11 SERVICES,SCIENCE,METEO-FRANCE AGENCE COMPTABLE SEC D2C,22571,4325.86,FR03180060030
BEIS,Met Office,2021-05-26,11 SERVICES,SCIENCE,REGENTS OF THE UNIVERSITY OF COLORADO,22581,8925.64,-
BEIS,Met Office,2021-05-05,10 EQUIPMENT MAINTENANCE,SERVICES,RAYMETRICS S.A. (GREEK ACCOUNT),22582,1119.23,EL999641589
BEIS,Met Office,2021-05-05,11 SERVICES,CHIEF FINANCIAL OFFICER,DBS FINANCE RECEIPTS CTS,22593,169.51,888805068
BEIS,Met Office,2021-05-26,13 MISCELLANEOUS,CHIEF FINANCIAL OFFICER,DEMSTAR BUSINESS SOLUTIONS LTD,22594,91.65,10156145J
BEIS,Met Office,2021-05-26,10 EQUIPMENT MAINTENANCE,SERVICES,CIMEL ELECTRONIQUE,22596,1570.72,FR89662017201
BEIS,Met Office,2021-05-26,10 EQUIPMENT MAINTENANCE,SERVICES,CIMEL ELECTRONIQUE,22622,3356.03,FR89662017201
BEIS,Met Office,2021-05-20,11 SERVICES,MARKETS,MAWASEM LTD,439317,11819.7,197694731
BEIS,Met Office,2021-05-27,11 SERVICES,MARKETS,FCDO,440692,22009.69,888813560
BEIS,Met Office,2021-05-12,11 SERVICES,TECHNOLOGY AND CIO,EUROPEAN DYNAMICS UK LTD,441078,31520,106603742
BEIS,Met Office,2021-05-04,11 SERVICES,MARKETS,FCDO,446160,2864.84,888813560
BEIS,Met Office,2021-05-27,11 SERVICES,SERVICES,BRIGHTBLUE CONSULTING,449014,7500,135 0352 49
BEIS,Met Office,2021-05-27,11 SERVICES,SERVICES,BRIGHTBLUE CONSULTING,449014,7500,135 0352 49
BEIS,Met Office,2021-05-04,11 SERVICES,MARKETS,FCDO,449145,194.47,888813560
BEIS,Met Office,2021-05-04,11 SERVICES,MARKETS,FCDO,449150,2924.8,888813560
BEIS,Met Office,2021-05-04,13 MISCELLANEOUS,CHIEF FINANCIAL OFFICER,POSTURITE (UK) LTD,449161,50,583565114
BEIS,Met Office,2021-05-04,13 MISCELLANEOUS,CHIEF FINANCIAL OFFICER,POSTURITE (UK) LTD,449162,50,583565114
BEIS,Met Office,2021-05-04,13 MISCELLANEOUS,CHIEF FINANCIAL OFFICER,POSTURITE (UK) LTD,449163,50,583565114
BEIS,Met Office,2021-05-04,13 MISCELLANEOUS,CHIEF FINANCIAL OFFICER,POSTURITE (UK) LTD,449164,50,583565114
BEIS,Met Office,2021-05-04,13 MISCELLANEOUS,CHIEF FINANCIAL OFFICER,POSTURITE (UK) LTD,449165,50,583565114
BEIS,Met Office,2021-05-04,13 MISCELLANEOUS,CHIEF FINANCIAL OFFICER,POSTURITE (UK) LTD,449166,50,583565114
BEIS,Met Office,2021-05-04,13 MISCELLANEOUS,CHIEF FINANCIAL OFFICER,POSTURITE (UK) LTD,449167,50,583565114
BEIS,Met Office,2021-05-04,13 MISCELLANEOUS,CHIEF FINANCIAL OFFICER,POSTURITE (UK) LTD,449168,50,583565114
BEIS,Met Office,2021-05-04,13 MISCELLANEOUS,CHIEF FINANCIAL OFFICER,POSTURITE (UK) LTD,449169,50,583565114
BEIS,Met Office,2021-05-04,13 MISCELLANEOUS,CHIEF FINANCIAL OFFICER,POSTURITE (UK) LTD,449170,50,583565114
BEIS,Met Office,2021-05-04,13 MISCELLANEOUS,CHIEF FINANCIAL OFFICER,POSTURITE (UK) LTD,449171,50,583565114
BEIS,Met Office,2021-05-04,13 MISCELLANEOUS,CHIEF FINANCIAL OFFICER,POSTURITE (UK) LTD,449172,50,583565114
BEIS,Met Office,2021-05-04,13 MISCELLANEOUS,CHIEF FINANCIAL OFFICER,POSTURITE (UK) LTD,449173,50,583565114
BEIS,Met Office,2021-05-04,13 MISCELLANEOUS,CHIEF FINANCIAL OFFICER,POSTURITE (UK) LTD,449174,50,583565114
BEIS,Met Office,2021-05-04,13 MISCELLANEOUS,CHIEF FINANCIAL OFFICER,POSTURITE (UK) LTD,449175,50,583565114
BEIS,Met Office,2021-05-04,13 MISCELLANEOUS,CHIEF FINANCIAL OFFICER,POSTURITE (UK) LTD,449326,120.9,583565114
BEIS,Met Office,2021-05-04,13 MISCELLANEOUS,CHIEF FINANCIAL OFFICER,POSTURITE (UK) LTD,449327,50,583565114
BEIS,Met Office,2021-05-04,11 SERVICES,MARKETS,FCDO,449558,3007.25,888813560
BEIS,Met Office,2021-05-04,13 MISCELLANEOUS,CHIEF FINANCIAL OFFICER,POSTURITE (UK) LTD,449581,50,583565114
BEIS,Met Office,2021-05-04,13 MISCELLANEOUS,CHIEF FINANCIAL OFFICER,POSTURITE (UK) LTD,449582,52.67,583565114
BEIS,Met Office,2021-05-04,13 MISCELLANEOUS,CHIEF FINANCIAL OFFICER,POSTURITE (UK) LTD,449583,50,583565114
BEIS,Met Office,2021-05-04,11 SERVICES,MARKETS,FCDO,450369,6160.81,888813560
BEIS,Met Office,2021-05-04,11 SERVICES,MARKETS,FCDO,450536,4957.93,888813560
BEIS,Met Office,2021-05-04,13 MISCELLANEOUS,CHIEF FINANCIAL OFFICER,POSTURITE (UK) LTD,451485,514.51,583565114
BEIS,Met Office,2021-05-04,11 SERVICES,SERVICES,WORLDPAY LTD,452093,21.55,991280207
BEIS,Met Office,2021-05-04,13 MISCELLANEOUS,CHIEF FINANCIAL OFFICER,POSTURITE (UK) LTD,452430,50,583565114
BEIS,Met Office,2021-05-04,11 SERVICES,PROGRAMMES,Imperial College,452445,19730,649926678
BEIS,Met Office,2021-05-04,11 SERVICES,PROGRAMMES,Imperial College,452446,79956,649926678
BEIS,Met Office,2021-05-04,13 MISCELLANEOUS,CHIEF FINANCIAL OFFICER,POSTURITE (UK) LTD,452455,170.47,583565114
BEIS,Met Office,2021-05-04,13 MISCELLANEOUS,CHIEF FINANCIAL OFFICER,POSTURITE (UK) LTD,452610,366,583565114
BEIS,Met Office,2021-05-20,13 MISCELLANEOUS,CHIEF FINANCIAL OFFICER,CANON UK LTD,452807,2764.58,523797128
BEIS,Met Office,2021-05-20,13 MISCELLANEOUS,CHIEF FINANCIAL OFFICER,CANON UK LTD,452807,89.74,523797128
BEIS,Met Office,2021-05-20,13 MISCELLANEOUS,CHIEF FINANCIAL OFFICER,CANON UK LTD,452807,23.16,523797128
BEIS,Met Office,2021-05-20,13 MISCELLANEOUS,CHIEF FINANCIAL OFFICER,CANON UK LTD,452807,89.74,523797128
BEIS,Met Office,2021-05-20,13 MISCELLANEOUS,CHIEF FINANCIAL OFFICER,CANON UK LTD,452807,89.74,523797128
BEIS,Met Office,2021-05-20,13 MISCELLANEOUS,CHIEF FINANCIAL OFFICER,CANON UK LTD,452807,89.74,523797128
BEIS,Met Office,2021-05-20,13 MISCELLANEOUS,CHIEF FINANCIAL OFFICER,CANON UK LTD,452807,89.74,523797128
BEIS,Met Office,2021-05-06,08 SOFTWARE LICENCES,PEOPLE,EDENRED EB (SHOPPING VOUCHERS),452985,1920,649 503 520
BEIS,Met Office,2021-05-11,11 SERVICES,PEOPLE,SKILLTEC LIMITED,453055,995,909833105
BEIS,Met Office,2021-05-04,13 MISCELLANEOUS,CHIEF FINANCIAL OFFICER,POSTURITE (UK) LTD,453063,50,583565114
BEIS,Met Office,2021-05-04,13 MISCELLANEOUS,CHIEF FINANCIAL OFFICER,POSTURITE (UK) LTD,453339,50,583565114
BEIS,Met Office,2021-05-20,11 SERVICES,SERVICES,CLOUDREACH EUROPE LIMITED,453579,7300,978187168
BEIS,Met Office,2021-05-04,13 MISCELLANEOUS,CHIEF FINANCIAL OFFICER,POSTURITE (UK) LTD,453635,81.86,583565114
BEIS,Met Office,2021-05-20,11 SERVICES,PEOPLE,BW TRAINING LTD,453637,395,-
BEIS,Met Office,2021-05-04,08 SOFTWARE LICENCES,OFFICE OF THE CEO,DILIGENT BOARDBOOKS LIMITED,453661,330,929451011
BEIS,Met Office,2021-05-04,06 ACCOMMODATION,CHIEF FINANCIAL OFFICER,Exeter City Council,453744,140288,142335594
BEIS,Met Office,2021-05-27,06 ACCOMMODATION,CHIEF FINANCIAL OFFICER,Exeter City Council,453745,140288,142335594
BEIS,Met Office,2021-05-04,11 SERVICES,PEOPLE,SKILLTEC LIMITED,453982,995,909833105
BEIS,Met Office,2021-05-27,11 SERVICES,PEOPLE,CIPHR,454132,45550,242661124
BEIS,Met Office,2021-05-04,11 SERVICES,PROGRAMMES,UK CENTRE FOR ECOLOGY & HYDROLOGY (UKCEH),454215,49703.57,336940192
BEIS,Met Office,2021-05-11,06 ACCOMMODATION,PROGRAMMES,Lars Communications Ltd,454226,12312,531463858
BEIS,Met Office,2021-05-25,11 SERVICES,PROGRAMMES,HOGAN LOVELLS INTERNATIONAL LLP,454240,12325.84,GB123371543
BEIS,Met Office,2021-05-25,11 SERVICES,PROGRAMMES,HOGAN LOVELLS INTERNATIONAL LLP,454240,16529.96,GB123371543
BEIS,Met Office,2021-05-25,11 SERVICES,PROGRAMMES,HOGAN LOVELLS INTERNATIONAL LLP,454240,79048.16,GB123371543
BEIS,Met Office,2021-05-25,11 SERVICES,PROGRAMMES,HOGAN LOVELLS INTERNATIONAL LLP,454240,32649.19,GB123371543
BEIS,Met Office,2021-05-27,04 CONTRACTORS,PROGRAMMES,REED,454279,7600,835515525
BEIS,Met Office,2021-05-27,04 CONTRACTORS,PROGRAMMES,REED,454279,6880.5,835515525
BEIS,Met Office,2021-05-27,04 CONTRACTORS,TECHNOLOGY AND CIO,REED,454279,9474,835515525
BEIS,Met Office,2021-05-04,11 SERVICES,PEOPLE,INCOMES DATA RESEARCH LTD,454282,664,201387245
BEIS,Met Office,2021-05-05,11 SERVICES,PROGRAMMES,MAURITIUS METEOROLOGICAL SOCIETY,454345,5062,-
BEIS,Met Office,2021-05-13,10 EQUIPMENT MAINTENANCE,TECHNOLOGY AND CIO,Hewlett Packard Ltd,454424,921659.38,314149679
BEIS,Met Office,2021-05-04,11 SERVICES,MARKETS,ROWE IT LTD,454439,6900,924964394
BEIS,Met Office,2021-05-06,08 SOFTWARE LICENCES,PEOPLE,EDENRED EB (SHOPPING VOUCHERS),454441,-1920,649 503 520
BEIS,Met Office,2021-05-06,08 SOFTWARE LICENCES,PEOPLE,EDENRED EB (SHOPPING VOUCHERS),454442,1600,649 503 520
BEIS,Met Office,2021-05-04,10 EQUIPMENT MAINTENANCE,SERVICES,RAISE TELECOMS LTD,454449,8671,166016521
BEIS,Met Office,2021-05-27,06 ACCOMMODATION,MARKETS,HIGHLANDS & ISLANDS AIRPORTS LTD.,454451,364.98,945667772
BEIS,Met Office,2021-05-06,STOCK,SERVICES,EDMUNDSON ELECTRICAL LTD,454527,0,338246841
BEIS,Met Office,2021-05-06,TRADE CREDITORS,SERVICES,EDMUNDSON ELECTRICAL LTD,454527,8116.8,338246841
BEIS,Met Office,2021-05-05,11 SERVICES,PEOPLE,FALCON.IO,454540,49499.98,DK 3336 2226
BEIS,Met Office,2021-05-04,06 ACCOMMODATION,MARKETS,Suffolk County Council,454553,50.62,104178791
BEIS,Met Office,2021-05-11,11 SERVICES,TECHNOLOGY AND CIO,SYNTHESYS SYSTEMS ENGINEERS LTD,454654,1741.5,499309492
BEIS,Met Office,2021-05-25,11 SERVICES,TECHNOLOGY AND CIO,BAE SYSTEMS APPLIED INTELLIGENCE LIMITED,454705,15180,GB641407169
BEIS,Met Office,2021-05-04,04 CONTRACTORS,MARKETS,SOLOS CONSULTANTS LTD,454719,9858.5,812035476
BEIS,Met Office,2021-05-18,11 SERVICES,CHIEF FINANCIAL OFFICER,Morton Fraser LLP,454738,1107.5,269129336
BEIS,Met Office,2021-05-05,11 SERVICES,CHIEF FINANCIAL OFFICER,SWISSCOM (SCHWEIZ) AG,454763,85,-
BEIS,Met Office,2021-05-20,04 CONTRACTORS,PROGRAMMES,REED,454786,400,835515525
BEIS,Met Office,2021-05-20,04 CONTRACTORS,TECHNOLOGY AND CIO,REED,454787,473.7,835515525
BEIS,Met Office,2021-05-04,06 ACCOMMODATION,CHIEF FINANCIAL OFFICER,REDACTED PERSONAL DATA,454794,1428,-
BEIS,Met Office,2021-05-04,04 CONTRACTORS,PEOPLE,MATRIX SCM LIMITED,454826,349.35,249 5734 68
BEIS,Met Office,2021-05-04,11 SERVICES,CHIEF FINANCIAL OFFICER,SURE SOUTH ATLANTIC LTD (ST HELENA),454829,1297.09,30005
BEIS,Met Office,2021-05-25,11 SERVICES,PROGRAMMES,HOGAN LOVELLS INTERNATIONAL LLP,454892,265181.23,GB123371543
BEIS,Met Office,2021-05-25,11 SERVICES,PROGRAMMES,HOGAN LOVELLS INTERNATIONAL LLP,454892,7143.03,GB123371543
BEIS,Met Office,2021-05-25,11 SERVICES,PROGRAMMES,HOGAN LOVELLS INTERNATIONAL LLP,454892,26967.81,GB123371543
BEIS,Met Office,2021-05-25,11 SERVICES,PROGRAMMES,HOGAN LOVELLS INTERNATIONAL LLP,454892,10454.84,GB123371543
BEIS,Met Office,2021-05-25,11 SERVICES,PROGRAMMES,HOGAN LOVELLS INTERNATIONAL LLP,454905,-12325.84,GB123371543
BEIS,Met Office,2021-05-25,11 SERVICES,PROGRAMMES,HOGAN LOVELLS INTERNATIONAL LLP,454905,-16529.96,GB123371543
BEIS,Met Office,2021-05-25,11 SERVICES,PROGRAMMES,HOGAN LOVELLS INTERNATIONAL LLP,454905,-79048.16,GB123371543
BEIS,Met Office,2021-05-25,11 SERVICES,PROGRAMMES,HOGAN LOVELLS INTERNATIONAL LLP,454905,-32649.19,GB123371543
BEIS,Met Office,2021-05-27,11 SERVICES,MARKETS,DOD'S PARLIAMENTARY COMMUNICATIONS LTD,454917,6200,792067900
BEIS,Met Office,2021-05-04,06 ACCOMMODATION,CHIEF FINANCIAL OFFICER,South West Water Ltd,454919,-1445.56,236873674
BEIS,Met Office,2021-05-04,06 ACCOMMODATION,CHIEF FINANCIAL OFFICER,UK CENTRE FOR ECOLOGY & HYDROLOGY (UKCEH),454945,5545.31,336940192
BEIS,Met Office,2021-05-04,04 CONTRACTORS,PEOPLE,MATRIX SCM LIMITED,454949,56032.04,249 5734 68
BEIS,Met Office,2021-05-25,11 SERVICES,TECHNOLOGY AND CIO,BAE SYSTEMS APPLIED INTELLIGENCE LIMITED,454951,15180,GB641407169
BEIS,Met Office,2021-05-25,11 SERVICES,TECHNOLOGY AND CIO,BAE SYSTEMS APPLIED INTELLIGENCE LIMITED,454952,12210,GB641407169
BEIS,Met Office,2021-05-12,11 SERVICES,PEOPLE,PLURALSIGHT,454953,409.32,EU826020045
BEIS,Met Office,2021-05-25,11 SERVICES,TECHNOLOGY AND CIO,LRQA LTD,454954,2040,821176647
BEIS,Met Office,2021-05-25,11 SERVICES,TECHNOLOGY AND CIO,BAE SYSTEMS APPLIED INTELLIGENCE LIMITED,454998,18090.72,GB641407169
BEIS,Met Office,2021-05-25,11 SERVICES,TECHNOLOGY AND CIO,BAE SYSTEMS APPLIED INTELLIGENCE LIMITED,454999,10350,GB641407169
BEIS,Met Office,2021-05-25,11 SERVICES,TECHNOLOGY AND CIO,BAE SYSTEMS APPLIED INTELLIGENCE LIMITED,455000,11361.84,GB641407169
BEIS,Met Office,2021-05-04,13 MISCELLANEOUS,CHIEF FINANCIAL OFFICER,ARTHUR J. GALLAGHER INSURANCE BROKERS LIMITED,455001,9800,GB484746209
BEIS,Met Office,2021-05-04,STOCK,SERVICES,EDMUNDSON ELECTRICAL LTD,455020,0,338246841
BEIS,Met Office,2021-05-04,TRADE CREDITORS,SERVICES,EDMUNDSON ELECTRICAL LTD,455020,3967.9,338246841
BEIS,Met Office,2021-05-12,08 SOFTWARE LICENCES,TECHNOLOGY AND CIO,"IBL SOFTWARE ENGINEERING, SPOL S.R.O.",455022,7282.73,SK2020241883
BEIS,Met Office,2021-05-12,08 SOFTWARE LICENCES,TECHNOLOGY AND CIO,"IBL SOFTWARE ENGINEERING, SPOL S.R.O.",455022,29577.65,SK2020241883
BEIS,Met Office,2021-05-04,11 SERVICES,PROGRAMMES,BJSS LIMITED,455024,5950,613295452
BEIS,Met Office,2021-05-04,11 SERVICES,PROGRAMMES,BJSS LIMITED,455024,6800,613295452
BEIS,Met Office,2021-05-04,11 SERVICES,PROGRAMMES,BJSS LIMITED,455024,5950,613295452
BEIS,Met Office,2021-05-04,08 SOFTWARE LICENCES,PROGRAMMES,SOFTWAREONE,455032,392.7,GB 942 5301 43
BEIS,Met Office,2021-05-04,08 SOFTWARE LICENCES,PROGRAMMES,SOFTWAREONE,455032,1738,GB 942 5301 43
BEIS,Met Office,2021-05-04,08 SOFTWARE LICENCES,PROGRAMMES,SOFTWAREONE,455032,1590.6,GB 942 5301 43
BEIS,Met Office,2021-05-04,13 MISCELLANEOUS,CHIEF FINANCIAL OFFICER,POSTURITE (UK) LTD,455033,32.5,583565114
BEIS,Met Office,2021-05-18,11 SERVICES,MARKETS,Cranfield University,455046,750,491358622
BEIS,Met Office,2021-05-18,04 CONTRACTORS,TECHNOLOGY AND CIO,WA CONSULTANTS LTD,455050,8627.5,876328977
BEIS,Met Office,2021-05-18,04 CONTRACTORS,PROGRAMMES,WA CONSULTANTS LTD,455051,11495,876328977
BEIS,Met Office,2021-05-04,11 SERVICES,SERVICES,CLOUDREACH EUROPE LIMITED,455053,7300,978187168
BEIS,Met Office,2021-05-04,11 SERVICES,SERVICES,REDACTED PERSONAL DATA,455056,130.24,-
BEIS,Met Office,2021-05-04,11 SERVICES,MARKETS,SOCIAL SENSING LTD,455057,2758,-
BEIS,Met Office,2021-05-18,11 SERVICES,OFFICE OF THE CEO,OSBORNE CLARKE LLP,455074,1824,GB138187353
BEIS,Met Office,2021-05-04,11 SERVICES,TECHNOLOGY AND CIO,Ibm United Kingdom Ltd,455075,6184.16,107328000
BEIS,Met Office,2021-05-18,11 SERVICES,PROGRAMMES,BAE SYSTEMS APPLIED INTELLIGENCE LIMITED,455076,20934.72,GB641407169
BEIS,Met Office,2021-05-04,08 SOFTWARE LICENCES,MARKETS,ROWE IT LTD,455077,6000,924964394
BEIS,Met Office,2021-05-25,11 SERVICES,TECHNOLOGY AND CIO,BAE SYSTEMS APPLIED INTELLIGENCE LIMITED,455078,7033.52,GB641407169
BEIS,Met Office,2021-05-20,06 ACCOMMODATION,CHIEF FINANCIAL OFFICER,Biffa Waste Services Ltd,455080,213.33,537911627
BEIS,Met Office,2021-05-04,11 SERVICES,TECHNOLOGY AND CIO,CLOUDREACH EUROPE LIMITED,455081,1150,978187168
BEIS,Met Office,2021-05-04,11 SERVICES,TECHNOLOGY AND CIO,CLOUDREACH EUROPE LIMITED,455081,4000,978187168
BEIS,Met Office,2021-05-04,03 STAFF COSTS T&S,SERVICES,DBS FINANCE RECEIPTS CTS,455082,3242,888805068
BEIS,Met Office,2021-05-04,04 CONTRACTORS,OFFICE OF THE CEO,JOBSEEKERS RECRUITMENT SERVICES LTD,455085,674.88,130 1297 14
BEIS,Met Office,2021-05-04,04 CONTRACTORS,MARKETS,JOBSEEKERS RECRUITMENT SERVICES LTD,455086,674.88,130 1297 14
BEIS,Met Office,2021-05-04,04 CONTRACTORS,CHIEF FINANCIAL OFFICER,JOBSEEKERS RECRUITMENT SERVICES LTD,455087,411.3,130 1297 14
BEIS,Met Office,2021-05-04,04 CONTRACTORS,MARKETS,JOBSEEKERS RECRUITMENT SERVICES LTD,455088,674.88,130 1297 14
BEIS,Met Office,2021-05-04,08 SOFTWARE LICENCES,TECHNOLOGY AND CIO,ORACLE CORPORATION UK LTD,455103,3282.38,391313073
BEIS,Met Office,2021-05-04,06 ACCOMMODATION,CHIEF FINANCIAL OFFICER,THE CLEANING CREW COMPANY,455104,621,343579772
BEIS,Met Office,2021-05-04,11 SERVICES,PROGRAMMES,University of Plymouth,455105,20424,168287859
BEIS,Met Office,2021-05-04,11 SERVICES,SERVICES,APPLIED SATELLITE TECHNOLOGY SYSTEMS LTD,455106,30.78,720108683
BEIS,Met Office,2021-05-04,11 SERVICES,SERVICES,APPLIED SATELLITE TECHNOLOGY SYSTEMS LTD,455107,30.78,720108683
BEIS,Met Office,2021-05-04,11 SERVICES,SERVICES,APPLIED SATELLITE TECHNOLOGY SYSTEMS LTD,455108,10124.25,720108683
BEIS,Met Office,2021-05-04,11 SERVICES,SERVICES,APPLIED SATELLITE TECHNOLOGY SYSTEMS LTD,455109,283.05,720108683
BEIS,Met Office,2021-05-25,11 SERVICES,TECHNOLOGY AND CIO,BAE SYSTEMS APPLIED INTELLIGENCE LIMITED,455110,15180,GB641407169
BEIS,Met Office,2021-05-04,11 SERVICES,SERVICES,APPLIED SATELLITE TECHNOLOGY SYSTEMS LTD,455111,239.1,720108683
BEIS,Met Office,2021-05-25,11 SERVICES,TECHNOLOGY AND CIO,BAE SYSTEMS APPLIED INTELLIGENCE LIMITED,455112,19698,GB641407169
BEIS,Met Office,2021-05-04,11 SERVICES,SERVICES,APPLIED SATELLITE TECHNOLOGY SYSTEMS LTD,455113,128.21,720108683
BEIS,Met Office,2021-05-04,11 SERVICES,TECHNOLOGY AND CIO,CLOUDREACH EUROPE LIMITED,455114,2371.68,978187168
BEIS,Met Office,2021-05-04,11 SERVICES,SERVICES,APPLIED SATELLITE TECHNOLOGY SYSTEMS LTD,455115,374.17,720108683
BEIS,Met Office,2021-05-04,03 STAFF COSTS T&S,CHIEF FINANCIAL OFFICER,ENTERPRISE RENT A CAR UK LTD,455178,351.94,215557314
BEIS,Met Office,2021-05-25,11 SERVICES,TECHNOLOGY AND CIO,BAE SYSTEMS APPLIED INTELLIGENCE LIMITED,455186,13442.41,GB641407169
BEIS,Met Office,2021-05-04,13 MISCELLANEOUS,SCIENCE,Imperial College,455187,334,649926678
BEIS,Met Office,2021-05-04,11 SERVICES,PEOPLE,NAS MEDIA LTD,455188,1000,224667500
BEIS,Met Office,2021-05-04,06 ACCOMMODATION,CHIEF FINANCIAL OFFICER,CBRE MANAGED SERVICES LTD,455189,26492.74,853936883
BEIS,Met Office,2021-05-04,06 ACCOMMODATION,CHIEF FINANCIAL OFFICER,CBRE MANAGED SERVICES LTD,455190,64.83,853936883
BEIS,Met Office,2021-05-04,11 SERVICES,MARKETS,ULTRA ELECTRONICS LTD NUCLEAR CONTROL SYSTEMS,455191,7905.11,123340754
BEIS,Met Office,2021-05-20,13 MISCELLANEOUS,SCIENCE,University College London,455192,-294.92,524371168
BEIS,Met Office,2021-05-06,06 ACCOMMODATION,CHIEF FINANCIAL OFFICER,Belfast International Airport Ltd,455193,5320,617777601
BEIS,Met Office,2021-05-04,11 SERVICES,PROGRAMMES,University of Edinburgh,455194,130110.58,592950700
BEIS,Met Office,2021-05-04,04 CONTRACTORS,PEOPLE,JOBSEEKERS RECRUITMENT SERVICES LTD,455195,676.36,130 1297 14
BEIS,Met Office,2021-05-04,04 CONTRACTORS,PEOPLE,JOBSEEKERS RECRUITMENT SERVICES LTD,455196,676.36,130 1297 14
BEIS,Met Office,2021-05-04,04 CONTRACTORS,CHIEF FINANCIAL OFFICER,JOBSEEKERS RECRUITMENT SERVICES LTD,455197,539.26,130 1297 14
BEIS,Met Office,2021-05-04,07 EQUIPMENT,SERVICES,ARTICUBE UK LTD,455198,2046,GB341925796
BEIS,Met Office,2021-05-04,07 EQUIPMENT,SERVICES,ARTICUBE UK LTD,455198,288,GB341925796
BEIS,Met Office,2021-05-04,07 EQUIPMENT,SERVICES,ARTICUBE UK LTD,455198,78,GB341925796
BEIS,Met Office,2021-05-04,12 INTERNATIONAL,MARKETS,CROWN AGENTS BANK,455199,94892.13,-
BEIS,Met Office,2021-05-04,11 SERVICES,MARKETS,DBS FINANCE RECEIPTS CTS,455203,13141.66,888805068
BEIS,Met Office,2021-05-04,04 CONTRACTORS,PEOPLE,HAYS SPECIALIST RECRUITMENT LTD,455204,366.15,773695871
BEIS,Met Office,2021-05-04,04 CONTRACTORS,PEOPLE,HAYS SPECIALIST RECRUITMENT LTD,455205,427.18,773695871
BEIS,Met Office,2021-05-04,04 CONTRACTORS,PEOPLE,HAYS SPECIALIST RECRUITMENT LTD,455206,257.96,773695871
BEIS,Met Office,2021-05-04,04 CONTRACTORS,TECHNOLOGY AND CIO,HAYS SPECIALIST RECRUITMENT LTD,455207,558.7,773695871
BEIS,Met Office,2021-05-25,11 SERVICES,PROGRAMMES,BAE SYSTEMS APPLIED INTELLIGENCE LIMITED,455208,65080,GB641407169
BEIS,Met Office,2021-05-04,13 MISCELLANEOUS,SERVICES,Royal Meteorological Society,455210,215,-
BEIS,Met Office,2021-05-04,08 SOFTWARE LICENCES,CHIEF FINANCIAL OFFICER,CEMAR,455211,450,915042161
BEIS,Met Office,2021-05-04,08 SOFTWARE LICENCES,CHIEF FINANCIAL OFFICER,CEMAR,455212,90,915042161
BEIS,Met Office,2021-05-04,08 SOFTWARE LICENCES,TECHNOLOGY AND CIO,SITEMORSE (UK SALES) LTD,455213,11025,928339691
BEIS,Met Office,2021-05-13,04 CONTRACTORS,PEOPLE,MATRIX SCM LIMITED,455214,138046.63,249 5734 68
BEIS,Met Office,2021-05-04,04 CONTRACTORS,TECHNOLOGY AND CIO,OUTSOURCE UK LIMITED,455217,2310.26,576118722
BEIS,Met Office,2021-05-04,04 CONTRACTORS,PROGRAMMES,OUTSOURCE UK LIMITED,455218,1350,576118722
BEIS,Met Office,2021-05-04,04 CONTRACTORS,PROGRAMMES,OUTSOURCE UK LIMITED,455220,2979.48,576118722
BEIS,Met Office,2021-05-04,04 CONTRACTORS,TECHNOLOGY AND CIO,OUTSOURCE UK LIMITED,455221,4436.96,576118722
BEIS,Met Office,2021-05-04,13 MISCELLANEOUS,SCIENCE,UNIVERSITY OF READING,455223,2250,200012659
BEIS,Met Office,2021-05-04,04 CONTRACTORS,PEOPLE,OUTSOURCE UK LIMITED,455225,2666.64,576118722
BEIS,Met Office,2021-05-04,04 CONTRACTORS,PROGRAMMES,OUTSOURCE UK LIMITED,455226,3956.96,576118722
BEIS,Met Office,2021-05-04,04 CONTRACTORS,PROGRAMMES,OUTSOURCE UK LIMITED,455227,3774.32,576118722
BEIS,Met Office,2021-05-04,04 CONTRACTORS,TECHNOLOGY AND CIO,OUTSOURCE UK LIMITED,455228,5806.44,576118722
BEIS,Met Office,2021-05-04,06 ACCOMMODATION,CHIEF FINANCIAL OFFICER,British Gas Trading Ltd,455229,169.79,684966762
BEIS,Met Office,2021-05-04,04 CONTRACTORS,TECHNOLOGY AND CIO,OUTSOURCE UK LIMITED,455230,5886.02,576118722
BEIS,Met Office,2021-05-04,04 CONTRACTORS,PROGRAMMES,OUTSOURCE UK LIMITED,455231,3405.12,576118722
BEIS,Met Office,2021-05-04,04 CONTRACTORS,TECHNOLOGY AND CIO,OUTSOURCE UK LIMITED,455232,4800,576118722
BEIS,Met Office,2021-05-04,04 CONTRACTORS,TECHNOLOGY AND CIO,OUTSOURCE UK LIMITED,455233,3036,576118722
BEIS,Met Office,2021-05-04,04 CONTRACTORS,TECHNOLOGY AND CIO,OUTSOURCE UK LIMITED,455234,2728.18,576118722
BEIS,Met Office,2021-05-04,04 CONTRACTORS,PROGRAMMES,OUTSOURCE UK LIMITED,455235,2782.64,576118722
BEIS,Met Office,2021-05-04,04 CONTRACTORS,PROGRAMMES,OUTSOURCE UK LIMITED,455236,2359,576118722
BEIS,Met Office,2021-05-04,04 CONTRACTORS,PROGRAMMES,OUTSOURCE UK LIMITED,455238,4800,576118722
BEIS,Met Office,2021-05-04,04 CONTRACTORS,PROGRAMMES,OUTSOURCE UK LIMITED,455239,5250,576118722
BEIS,Met Office,2021-05-04,04 CONTRACTORS,PROGRAMMES,OUTSOURCE UK LIMITED,455240,1800,576118722
BEIS,Met Office,2021-05-04,04 CONTRACTORS,TECHNOLOGY AND CIO,OUTSOURCE UK LIMITED,455241,2871.82,576118722
BEIS,Met Office,2021-05-04,04 CONTRACTORS,PROGRAMMES,OUTSOURCE UK LIMITED,455242,2250,576118722
BEIS,Met Office,2021-05-04,04 CONTRACTORS,PROGRAMMES,OUTSOURCE UK LIMITED,455243,1276.95,576118722
BEIS,Met Office,2021-05-04,06 ACCOMMODATION,CHIEF FINANCIAL OFFICER,ST MODWEN VENTURES LTD,455244,36.74,975081008
BEIS,Met Office,2021-05-04,04 CONTRACTORS,PROGRAMMES,OUTSOURCE UK LIMITED,455245,2128.25,576118722
BEIS,Met Office,2021-05-04,04 CONTRACTORS,CHIEF FINANCIAL OFFICER,OUTSOURCE UK LIMITED,455246,-1702.56,576118722
BEIS,Met Office,2021-05-04,04 CONTRACTORS,CHIEF FINANCIAL OFFICER,OUTSOURCE UK LIMITED,455247,1276.92,576118722
BEIS,Met Office,2021-05-04,04 CONTRACTORS,PROGRAMMES,OUTSOURCE UK LIMITED,455248,2173.92,576118722
BEIS,Met Office,2021-05-04,04 CONTRACTORS,PROGRAMMES,OUTSOURCE UK LIMITED,455249,4000,576118722
BEIS,Met Office,2021-05-04,04 CONTRACTORS,CHIEF FINANCIAL OFFICER,OUTSOURCE UK LIMITED,455250,3830.76,576118722
BEIS,Met Office,2021-05-04,04 CONTRACTORS,TECHNOLOGY AND CIO,OUTSOURCE UK LIMITED,455251,5358.95,576118722
BEIS,Met Office,2021-05-04,11 SERVICES,PEOPLE,SCIENCE MEDIA CENTRE,455252,3000,-
BEIS,Met Office,2021-05-04,07 EQUIPMENT,SCIENCE,DANTECH ELECTRONIC ENGINEERING,455253,10,GB 282 7627 31
BEIS,Met Office,2021-05-04,07 EQUIPMENT,SCIENCE,DANTECH ELECTRONIC ENGINEERING,455253,168,GB 282 7627 31
BEIS,Met Office,2021-05-04,06 ACCOMMODATION,CHIEF FINANCIAL OFFICER,Severn Trent Water Ltd,455269,32,486985565
BEIS,Met Office,2021-05-04,06 ACCOMMODATION,CHIEF FINANCIAL OFFICER,Shetland Islands Council,455270,490,267858304
BEIS,Met Office,2021-05-04,06 ACCOMMODATION,CHIEF FINANCIAL OFFICER,South West Water Ltd,455271,1204.2,236873674
BEIS,Met Office,2021-05-04,06 ACCOMMODATION,CHIEF FINANCIAL OFFICER,Stirling Council,455272,612.5,663873401
BEIS,Met Office,2021-05-04,11 SERVICES,PROGRAMMES,University Of Exeter,455273,39605.83,142047795
BEIS,Met Office,2021-05-05,11 SERVICES,MARKETS,SOUTHSOUTHNORTH,455274,31993.11,4790219721
BEIS,Met Office,2021-05-04,06 ACCOMMODATION,CHIEF FINANCIAL OFFICER,CALOR GAS LIMITED,455276,522.6,207610984
BEIS,Met Office,2021-05-04,06 ACCOMMODATION,CHIEF FINANCIAL OFFICER,MORAY COUNCIL,455277,1568,663755506
BEIS,Met Office,2021-05-04,06 ACCOMMODATION,CHIEF FINANCIAL OFFICER,CALOR GAS LIMITED,455278,34.25,207610984
BEIS,Met Office,2021-05-04,06 ACCOMMODATION,CHIEF FINANCIAL OFFICER,CALOR GAS LIMITED,455279,34.25,207610984
BEIS,Met Office,2021-05-04,06 ACCOMMODATION,CHIEF FINANCIAL OFFICER,Shetland Islands Council,455280,98,267858304
BEIS,Met Office,2021-05-04,11 SERVICES,CHIEF FINANCIAL OFFICER,BT plc,455281,11768.78,245719348
BEIS,Met Office,2021-05-04,06 ACCOMMODATION,CHIEF FINANCIAL OFFICER,Aberdeen City Council,455282,1715,222627191
BEIS,Met Office,2021-05-04,06 ACCOMMODATION,CHIEF FINANCIAL OFFICER,Shetland Islands Council,455283,35713,267858304
BEIS,Met Office,2021-05-04,06 ACCOMMODATION,CHIEF FINANCIAL OFFICER,CALOR GAS LIMITED,455285,34.25,207610984
BEIS,Met Office,2021-05-04,06 ACCOMMODATION,CHIEF FINANCIAL OFFICER,CALOR GAS LIMITED,455286,19.61,207610984
BEIS,Met Office,2021-05-04,06 ACCOMMODATION,CHIEF FINANCIAL OFFICER,CALOR GAS LIMITED,455287,34.25,207610984
BEIS,Met Office,2021-05-04,11 SERVICES,CHIEF FINANCIAL OFFICER,BT plc,455288,46.91,245719348
BEIS,Met Office,2021-05-04,06 ACCOMMODATION,CHIEF FINANCIAL OFFICER,Stirling Council,455289,477.75,663873401
BEIS,Met Office,2021-05-04,06 ACCOMMODATION,CHIEF FINANCIAL OFFICER,CALOR GAS LIMITED,455290,34.25,207610984
BEIS,Met Office,2021-05-04,06 ACCOMMODATION,CHIEF FINANCIAL OFFICER,CALOR GAS LIMITED,455291,814.32,207610984
BEIS,Met Office,2021-05-04,04 CONTRACTORS,PROGRAMMES,OUTSOURCE UK LIMITED,455292,-9000,576118722
BEIS,Met Office,2021-05-04,04 CONTRACTORS,PROGRAMMES,OUTSOURCE UK LIMITED,455293,-9500,576118722
BEIS,Met Office,2021-05-04,04 CONTRACTORS,TECHNOLOGY AND CIO,OUTSOURCE UK LIMITED,455294,-16150,576118722
BEIS,Met Office,2021-05-04,04 CONTRACTORS,PROGRAMMES,OUTSOURCE UK LIMITED,455295,8919.3,576118722
BEIS,Met Office,2021-05-04,04 CONTRACTORS,TECHNOLOGY AND CIO,OUTSOURCE UK LIMITED,455296,-18700,576118722
BEIS,Met Office,2021-05-04,04 CONTRACTORS,PROGRAMMES,OUTSOURCE UK LIMITED,455297,9397.78,576118722
BEIS,Met Office,2021-05-04,04 CONTRACTORS,TECHNOLOGY AND CIO,OUTSOURCE UK LIMITED,455298,-14875,576118722
BEIS,Met Office,2021-05-04,04 CONTRACTORS,TECHNOLOGY AND CIO,OUTSOURCE UK LIMITED,455300,-11475,576118722
BEIS,Met Office,2021-05-04,04 CONTRACTORS,TECHNOLOGY AND CIO,OUTSOURCE UK LIMITED,455302,-14875,576118722
BEIS,Met Office,2021-05-04,04 CONTRACTORS,TECHNOLOGY AND CIO,OUTSOURCE UK LIMITED,455303,11351.61,576118722
BEIS,Met Office,2021-05-04,04 CONTRACTORS,TECHNOLOGY AND CIO,OUTSOURCE UK LIMITED,455304,14715.05,576118722
BEIS,Met Office,2021-05-04,04 CONTRACTORS,TECHNOLOGY AND CIO,OUTSOURCE UK LIMITED,455305,16022.04,576118722
BEIS,Met Office,2021-05-04,11 SERVICES,PEOPLE,OLD FROG LTD,455306,1880,642591532
BEIS,Met Office,2021-05-04,06 ACCOMMODATION,CHIEF FINANCIAL OFFICER,BIDVEST NOONAN UK LTD,455307,890.6,GB847176988
BEIS,Met Office,2021-05-04,06 ACCOMMODATION,CHIEF FINANCIAL OFFICER,BIDVEST NOONAN UK LTD,455308,395.68,GB847176988
BEIS,Met Office,2021-05-04,11 SERVICES,MARKETS,CACI LTD,455309,16296.11,380609841
BEIS,Met Office,2021-05-04,11 SERVICES,CHIEF FINANCIAL OFFICER,BT plc,455310,876.22,245719348
BEIS,Met Office,2021-05-06,11 SERVICES,SCIENCE,University Of Exeter,455311,96000,142047795
BEIS,Met Office,2021-05-06,INFORMATION TECHNOLOGY,PROGRAMMES,Campbell Scientific Ltd,455312,1873.8,428453933
BEIS,Met Office,2021-05-06,INFORMATION TECHNOLOGY,PROGRAMMES,Campbell Scientific Ltd,455312,36,428453933
BEIS,Met Office,2021-05-06,INFORMATION TECHNOLOGY,PROGRAMMES,Campbell Scientific Ltd,455312,72,428453933
BEIS,Met Office,2021-05-06,11 SERVICES,PROGRAMMES,Campbell Scientific Ltd,455312,310.5,428453933
BEIS,Met Office,2021-05-06,11 SERVICES,PROGRAMMES,Campbell Scientific Ltd,455312,621,428453933
BEIS,Met Office,2021-05-06,11 SERVICES,PROGRAMMES,Campbell Scientific Ltd,455312,67,428453933
BEIS,Met Office,2021-05-04,11 SERVICES,PROGRAMMES,Arup,455313,3747,524461265
BEIS,Met Office,2021-05-04,07 EQUIPMENT,TECHNOLOGY AND CIO,COMPUTACENTER (UK) LTD,455314,3365.4,490334648
BEIS,Met Office,2021-05-06,04 CONTRACTORS,PROGRAMMES,HAYS SPECIALIST RECRUITMENT LTD,455315,366.16,773695871
BEIS,Met Office,2021-05-06,04 CONTRACTORS,MARKETS,HAYS SPECIALIST RECRUITMENT LTD,455316,366.16,773695871
BEIS,Met Office,2021-05-06,04 CONTRACTORS,MARKETS,HAYS SPECIALIST RECRUITMENT LTD,455317,366.16,773695871
BEIS,Met Office,2021-05-06,04 CONTRACTORS,PROGRAMMES,HAYS SPECIALIST RECRUITMENT LTD,455318,366.16,773695871
BEIS,Met Office,2021-05-04,13 MISCELLANEOUS,CHIEF FINANCIAL OFFICER,BANNER GROUP LIMITED,455319,5.74,GB391085740
BEIS,Met Office,2021-05-04,13 MISCELLANEOUS,CHIEF FINANCIAL OFFICER,BANNER GROUP LIMITED,455321,56.56,GB391085740
BEIS,Met Office,2021-05-04,06 ACCOMMODATION,CHIEF FINANCIAL OFFICER,Biffa Waste Services Ltd,455324,176.65,537911627
BEIS,Met Office,2021-05-04,11 SERVICES,PROGRAMMES,UNIVERSITY OF CAMBRIDGE,455325,57677.27,214222124
BEIS,Met Office,2021-05-04,12 INTERNATIONAL,MARKETS,MYACORN LTD,455327,15000,-
BEIS,Met Office,2021-05-04,13 MISCELLANEOUS,CHIEF FINANCIAL OFFICER,CANON UK LTD,455328,949.14,523797128
BEIS,Met Office,2021-05-27,04 CONTRACTORS,PROGRAMMES,REED,455344,2800,835515525
BEIS,Met Office,2021-05-27,04 CONTRACTORS,PROGRAMMES,REED,455344,4587,835515525
BEIS,Met Office,2021-05-27,04 CONTRACTORS,TECHNOLOGY AND CIO,REED,455344,3789.6,835515525
BEIS,Met Office,2021-05-04,11 SERVICES,CHIEF FINANCIAL OFFICER,TELEFONICA O2 UK LIMITED,455345,50,778603785
BEIS,Met Office,2021-05-04,06 ACCOMMODATION,CHIEF FINANCIAL OFFICER,EDF ENERGY CUSTOMERS PLC,455346,3941.18,523041202
BEIS,Met Office,2021-05-04,11 SERVICES,CHIEF FINANCIAL OFFICER,ADAM PHONES LTD,455347,82.65,538877093
BEIS,Met Office,2021-05-11,06 ACCOMMODATION,CHIEF FINANCIAL OFFICER,CBRE MANAGED SERVICES LTD,455348,5008.39,853936883
BEIS,Met Office,2021-05-06,FIXTURE & FITTINGS,CHIEF FINANCIAL OFFICER,CBRE MANAGED SERVICES LTD,455349,22282.61,853936883
BEIS,Met Office,2021-05-04,06 ACCOMMODATION,CHIEF FINANCIAL OFFICER,CBRE MANAGED SERVICES LTD,455350,25395.95,853936883
BEIS,Met Office,2021-05-04,06 ACCOMMODATION,CHIEF FINANCIAL OFFICER,CBRE MANAGED SERVICES LTD,455351,141920.1,853936883
BEIS,Met Office,2021-05-04,11 SERVICES,PROGRAMMES,REDACTED PERSONAL DATA,455352,25000,N/A
BEIS,Met Office,2021-05-04,11 SERVICES,CHIEF FINANCIAL OFFICER,DIGITAL COMMUNICATIONS SYSTEMS LIMITED,455353,4200.93,GB 556 1971 19
BEIS,Met Office,2021-05-06,04 CONTRACTORS,CHIEF FINANCIAL OFFICER,JOBSEEKERS RECRUITMENT SERVICES LTD,455354,676.36,130 1297 14
BEIS,Met Office,2021-05-04,04 CONTRACTORS,MARKETS,JOBSEEKERS RECRUITMENT SERVICES LTD,455355,674.88,130 1297 14
BEIS,Met Office,2021-05-04,04 CONTRACTORS,OFFICE OF THE CEO,JOBSEEKERS RECRUITMENT SERVICES LTD,455356,674.88,130 1297 14
BEIS,Met Office,2021-05-04,04 CONTRACTORS,PEOPLE,JOBSEEKERS RECRUITMENT SERVICES LTD,455357,621.52,130 1297 14
BEIS,Met Office,2021-05-04,06 ACCOMMODATION,CHIEF FINANCIAL OFFICER,GOVERNMENT PROPERTY AGENCY,455358,91.37,888 8508 47
BEIS,Met Office,2021-05-04,04 CONTRACTORS,PEOPLE,JOBSEEKERS RECRUITMENT SERVICES LTD,455359,411.3,130 1297 14
BEIS,Met Office,2021-05-25,11 SERVICES,CHIEF FINANCIAL OFFICER,MITIE SECURITY LTD,455360,10263.36,416706654
BEIS,Met Office,2021-05-25,11 SERVICES,CHIEF FINANCIAL OFFICER,MITIE SECURITY LTD,455361,20526.35,416706654
BEIS,Met Office,2021-05-04,04 CONTRACTORS,MARKETS,JOBSEEKERS RECRUITMENT SERVICES LTD,455362,674.88,130 1297 14
BEIS,Met Office,2021-05-04,04 CONTRACTORS,CHIEF FINANCIAL OFFICER,JOBSEEKERS RECRUITMENT SERVICES LTD,455363,411.3,130 1297 14
BEIS,Met Office,2021-05-04,13 MISCELLANEOUS,SCIENCE,University Of East Anglia,455364,333.33,595183505
BEIS,Met Office,2021-05-27,08 SOFTWARE LICENCES,PEOPLE,CIPHR,455365,182414,242661124
BEIS,Met Office,2021-05-04,06 ACCOMMODATION,CHIEF FINANCIAL OFFICER,D&G OFFICE SERVICES LTD,455366,276.25,272997547
BEIS,Met Office,2021-05-04,06 ACCOMMODATION,CHIEF FINANCIAL OFFICER,D&G OFFICE SERVICES LTD,455366,276.25,272997547
BEIS,Met Office,2021-05-04,06 ACCOMMODATION,CHIEF FINANCIAL OFFICER,D&G OFFICE SERVICES LTD,455366,276.25,272997547
BEIS,Met Office,2021-05-04,11 SERVICES,MARKETS,BANK OF CREATIVITY,455368,1700,-
BEIS,Met Office,2021-05-04,11 SERVICES,CHIEF FINANCIAL OFFICER,Vodafone Limited,455369,495.65,569953277
BEIS,Met Office,2021-05-04,11 SERVICES,CHIEF FINANCIAL OFFICER,Vodafone Limited,455371,10.21,569953277
BEIS,Met Office,2021-05-04,04 CONTRACTORS,TECHNOLOGY AND CIO,OUTSOURCE UK LIMITED,455372,18498.92,576118722
BEIS,Met Office,2021-05-04,04 CONTRACTORS,TECHNOLOGY AND CIO,OUTSOURCE UK LIMITED,455373,14715.05,576118722
BEIS,Met Office,2021-05-18,11 SERVICES,PROGRAMMES,MARGARET DAVIES,455393,1000,-
BEIS,Met Office,2021-05-04,08 SOFTWARE LICENCES,TECHNOLOGY AND CIO,XEBIALABS LTD,455394,11691,228794369
BEIS,Met Office,2021-05-04,13 MISCELLANEOUS,CHIEF FINANCIAL OFFICER,CARDIFF EXECUTIVE CENTRE LTD,455395,1.73,864497378
BEIS,Met Office,2021-05-04,06 ACCOMMODATION,CHIEF FINANCIAL OFFICER,CARDIFF EXECUTIVE CENTRE LTD,455396,2470,864497378
BEIS,Met Office,2021-05-04,07 EQUIPMENT,SCIENCE,CAMTEC ENGINEERING LTD,455397,20,527033861
BEIS,Met Office,2021-05-04,07 EQUIPMENT,SCIENCE,CAMTEC ENGINEERING LTD,455397,80,527033861
BEIS,Met Office,2021-05-04,07 EQUIPMENT,SCIENCE,CAMTEC ENGINEERING LTD,455397,128,527033861
BEIS,Met Office,2021-05-04,07 EQUIPMENT,SCIENCE,CAMTEC ENGINEERING LTD,455397,220,527033861
BEIS,Met Office,2021-05-04,07 EQUIPMENT,SCIENCE,CAMTEC ENGINEERING LTD,455397,248,527033861
BEIS,Met Office,2021-05-04,07 EQUIPMENT,SCIENCE,CAMTEC ENGINEERING LTD,455397,60,527033861
BEIS,Met Office,2021-05-04,11 SERVICES,CHIEF FINANCIAL OFFICER,Vodafone Limited,455398,737.5,569953277
BEIS,Met Office,2021-05-04,11 SERVICES,CHIEF FINANCIAL OFFICER,Vodafone Limited,455399,447.95,569953277
BEIS,Met Office,2021-05-04,06 ACCOMMODATION,CHIEF FINANCIAL OFFICER,LAMBERT SMITH HAMPTON GROUP LTD CLIENT A/C,455400,92.5,NOVAT
BEIS,Met Office,2021-05-04,08 SOFTWARE LICENCES,TECHNOLOGY AND CIO,PRESENTATION CARTOGRAPHY LTD,455401,6600,-
BEIS,Met Office,2021-05-04,08 SOFTWARE LICENCES,TECHNOLOGY AND CIO,PRESENTATION CARTOGRAPHY LTD,455401,38000,-
BEIS,Met Office,2021-05-04,08 SOFTWARE LICENCES,TECHNOLOGY AND CIO,PRESENTATION CARTOGRAPHY LTD,455401,7000,-
BEIS,Met Office,2021-05-04,06 ACCOMMODATION,CHIEF FINANCIAL OFFICER,LAMBERT SMITH HAMPTON GROUP LTD CLIENT A/C,455402,111,NOVAT
BEIS,Met Office,2021-05-04,11 SERVICES,CHIEF FINANCIAL OFFICER,WEBEX COMMUNICATIONS UK LTD,455403,210.06,815974302
BEIS,Met Office,2021-05-04,11 SERVICES,PEOPLE,LB TRAINING LTD,455405,790,-
BEIS,Met Office,2021-05-04,06 ACCOMMODATION,CHIEF FINANCIAL OFFICER,Belfast International Airport Ltd,455408,544.16,617777601
BEIS,Met Office,2021-05-04,10 EQUIPMENT MAINTENANCE,TECHNOLOGY AND CIO,COMPUTACENTER (UK) LTD,455409,43340.49,490334648
BEIS,Met Office,2021-05-04,10 EQUIPMENT MAINTENANCE,TECHNOLOGY AND CIO,COMPUTACENTER (UK) LTD,455410,3202.07,490334648
BEIS,Met Office,2021-05-04,13 MISCELLANEOUS,CHIEF FINANCIAL OFFICER,EDEN SPRINGS UK LTD,455411,247.43,232160411
BEIS,Met Office,2021-05-04,07 EQUIPMENT,TECHNOLOGY AND CIO,COMPUTACENTER (UK) LTD,455412,4038.48,490334648
BEIS,Met Office,2021-05-04,PAYE AND VAT,OTHER,HMRC,455413,5286015,-
BEIS,Met Office,2021-05-11,11 SERVICES,PEOPLE,PTR ASSOCIATES LTD,455415,4350,532192956
BEIS,Met Office,2021-05-04,13 MISCELLANEOUS,MARKETS,ARTHUR J. GALLAGHER INSURANCE BROKERS LIMITED,455416,4000,GB484746209
BEIS,Met Office,2021-05-04,03 STAFF COSTS T&S,CHIEF FINANCIAL OFFICER,RAINBOW CITY TAXIS,455417,27.9,724295039
BEIS,Met Office,2021-05-04,13 MISCELLANEOUS,SERVICES,ARTHUR J. GALLAGHER INSURANCE BROKERS LIMITED,455418,14000,GB484746209
BEIS,Met Office,2021-05-04,SOFTWARE LICENCES,MARKETS,Esri (Uk) Ltd,455419,1241.5,787430791
BEIS,Met Office,2021-05-04,13 MISCELLANEOUS,MARKETS,ARTHUR J. GALLAGHER INSURANCE BROKERS LIMITED,455420,7840,GB484746209
BEIS,Met Office,2021-05-04,11 SERVICES,PROGRAMMES,GAMMA TELECOM LTD,455421,3222.5,823820344
BEIS,Met Office,2021-05-04,06 ACCOMMODATION,CHIEF FINANCIAL OFFICER,South West Water Ltd,455435,1204.2,236873674
BEIS,Met Office,2021-05-04,11 SERVICES,CHIEF FINANCIAL OFFICER,BT GLOBAL SERVICES,455442,14744.09,245719348
BEIS,Met Office,2021-05-04,06 ACCOMMODATION,CHIEF FINANCIAL OFFICER,Shetland Islands Council,455443,125,267858304
BEIS,Met Office,2021-05-04,06 ACCOMMODATION,CHIEF FINANCIAL OFFICER,South West Water Ltd,455444,63.48,236873674
BEIS,Met Office,2021-05-18,04 CONTRACTORS,PROGRAMMES,OUTSOURCE UK LIMITED,455449,9892.4,576118722
BEIS,Met Office,2021-05-04,06 ACCOMMODATION,CHIEF FINANCIAL OFFICER,DARD CORPORATE ACCOUNT,455451,101,-
BEIS,Met Office,2021-05-13,04 CONTRACTORS,PEOPLE,MATRIX SCM LIMITED,455453,202221.56,249 5734 68
BEIS,Met Office,2021-05-11,03 STAFF COSTS T&S,CHIEF FINANCIAL OFFICER,LEASEDRIVE RENTAL MANAGEMENT LTD,455454,264.61,733546040
BEIS,Met Office,2021-05-06,04 CONTRACTORS,PEOPLE,HAYS SPECIALIST RECRUITMENT LTD,455457,634.67,773695871
BEIS,Met Office,2021-05-06,04 CONTRACTORS,PEOPLE,HAYS SPECIALIST RECRUITMENT LTD,455458,488.2,773695871
BEIS,Met Office,2021-05-06,04 CONTRACTORS,TECHNOLOGY AND CIO,HAYS SPECIALIST RECRUITMENT LTD,455459,558.71,773695871
BEIS,Met Office,2021-05-06,04 CONTRACTORS,PEOPLE,HAYS SPECIALIST RECRUITMENT LTD,455460,257.96,773695871
BEIS,Met Office,2021-05-04,13 MISCELLANEOUS,CHIEF FINANCIAL OFFICER,NORSCOTT VENDING SERVICES LTD,455461,85,751402071
BEIS,Met Office,2021-05-11,13 MISCELLANEOUS,CHIEF FINANCIAL OFFICER,POSTURITE (UK) LTD,455462,2812.36,583565114
BEIS,Met Office,2021-05-04,06 ACCOMMODATION,CHIEF FINANCIAL OFFICER,BAE SYSTEMS APPLIED INTELLIGENCE LIMITED,455463,626.21,GB641407169
BEIS,Met Office,2021-05-04,06 ACCOMMODATION,CHIEF FINANCIAL OFFICER,BAE SYSTEMS APPLIED INTELLIGENCE LIMITED,455465,626.21,GB641407169
BEIS,Met Office,2021-05-04,11 SERVICES,MARKETS,FCDO,455466,3056.29,888813560
BEIS,Met Office,2021-05-04,03 STAFF COSTS T&S,CHIEF FINANCIAL OFFICER,ENTERPRISE RENT A CAR UK LTD,455469,333.57,215557314
BEIS,Met Office,2021-05-06,STOCK,SERVICES,Campbell Scientific Ltd,455470,0,428453933
BEIS,Met Office,2021-05-06,TRADE CREDITORS,SERVICES,Campbell Scientific Ltd,455470,345.6,428453933
BEIS,Met Office,2021-05-06,11 SERVICES,SERVICES,Campbell Scientific Ltd,455470,15,428453933
BEIS,Met Office,2021-05-06,07 EQUIPMENT,SERVICES,Gill Instruments Ltd,455471,5600,522056678
BEIS,Met Office,2021-05-04,10 EQUIPMENT MAINTENANCE,TECHNOLOGY AND CIO,ORACLE CORPORATION UK LTD,455472,33425.7,391313073
BEIS,Met Office,2021-05-06,08 SOFTWARE LICENCES,TECHNOLOGY AND CIO,COMPUTACENTER (UK) LTD,455473,9900,490334648
BEIS,Met Office,2021-05-06,04 CONTRACTORS,MARKETS,HAYS SPECIALIST RECRUITMENT LTD,455474,366.16,773695871
BEIS,Met Office,2021-05-04,11 SERVICES,PROGRAMMES,SCIENCE & TECHNOLOGY FACILITIES COUNCIL,455476,50000,287461957
BEIS,Met Office,2021-05-06,13 MISCELLANEOUS,CHIEF FINANCIAL OFFICER,POSTURITE (UK) LTD,455477,31.62,583565114
BEIS,Met Office,2021-05-06,06 ACCOMMODATION,CHIEF FINANCIAL OFFICER,POWER NI ENERGY LTD,455483,432.21,617518142
BEIS,Met Office,2021-05-25,11 SERVICES,TECHNOLOGY AND CIO,BAE SYSTEMS APPLIED INTELLIGENCE LIMITED,455485,13695,GB641407169
BEIS,Met Office,2021-05-25,11 SERVICES,TECHNOLOGY AND CIO,BAE SYSTEMS APPLIED INTELLIGENCE LIMITED,455486,10820.8,GB641407169
BEIS,Met Office,2021-05-25,11 SERVICES,PROGRAMMES,BAE SYSTEMS APPLIED INTELLIGENCE LIMITED,455487,53749.46,GB641407169
BEIS,Met Office,2021-05-25,11 SERVICES,TECHNOLOGY AND CIO,BAE SYSTEMS APPLIED INTELLIGENCE LIMITED,455488,11294.21,GB641407169
BEIS,Met Office,2021-05-27,06 ACCOMMODATION,CHIEF FINANCIAL OFFICER,COLES COURTYARD,455489,509.55,-
BEIS,Met Office,2021-05-26,11 SERVICES,PROGRAMMES,NIWA,455490,70000,GST059456466
BEIS,Met Office,2021-05-11,11 SERVICES,PEOPLE,LB TRAINING LTD,455491,395,-
BEIS,Met Office,2021-05-06,06 ACCOMMODATION,CHIEF FINANCIAL OFFICER,TENNIE FACILITIES PROPERTY MANAGEMENT LTD,455492,186.43,982055803
BEIS,Met Office,2021-05-06,13 MISCELLANEOUS,CHIEF FINANCIAL OFFICER,PRINCES GATE COOL WATER LTD,455493,210.36,771895285
BEIS,Met Office,2021-05-06,11 SERVICES,PEOPLE,LB TRAINING LTD,455498,1185,-
BEIS,Met Office,2021-05-06,11 SERVICES,CHIEF FINANCIAL OFFICER,LICENCE BUREAU LTD,455508,450.25,820219467
BEIS,Met Office,2021-05-06,06 ACCOMMODATION,CHIEF FINANCIAL OFFICER,THE CLEANING CREW COMPANY,455509,664,343579772
BEIS,Met Office,2021-05-06,11 SERVICES,TECHNOLOGY AND CIO,FLYFORM LTD,455510,13930,237333808
BEIS,Met Office,2021-05-11,11 SERVICES,MARKETS,ADOPSTAR,455511,1250,115036848
BEIS,Met Office,2021-05-06,08 SOFTWARE LICENCES,TECHNOLOGY AND CIO,Ibm United Kingdom Ltd,455512,9309,107328000
BEIS,Met Office,2021-05-06,11 SERVICES,CHIEF FINANCIAL OFFICER,ALLSTAR BUSINESS SOLUTIONS LTD,455519,2135.17,747880191
BEIS,Met Office,2021-05-11,06 ACCOMMODATION,CHIEF FINANCIAL OFFICER,REDACTED PERSONAL DATA,455520,200,N/A
BEIS,Met Office,2021-05-11,11 SERVICES,SERVICES,Boc Ltd,455521,12348.77,226556555
BEIS,Met Office,2021-05-11,05 CONSULTANTS,MARKETS,EARTH WIND FIRE AND WATER,455522,1012.5,243759288
BEIS,Met Office,2021-05-13,08 SOFTWARE LICENCES,TECHNOLOGY AND CIO,GOOGLE IRELAND LTD,455523,31.78,6388047V
BEIS,Met Office,2021-05-06,08 SOFTWARE LICENCES,TECHNOLOGY AND CIO,Ibm United Kingdom Ltd,455525,9705.7,107328000
BEIS,Met Office,2021-05-11,06 ACCOMMODATION,SERVICES,INMARSAT SOLUTIONS (CANADA) INC,455528,57.32,766144223
BEIS,Met Office,2021-05-11,11 SERVICES,MARKETS,MOMENTUM INCORPORATED,455529,12800,598958541
BEIS,Met Office,2021-05-06,11 SERVICES,CHIEF FINANCIAL OFFICER,REDACTED PERSONAL DATA,455535,119.2,729159704
BEIS,Met Office,2021-05-06,11 SERVICES,CHIEF FINANCIAL OFFICER,REDACTED PERSONAL DATA,455536,272,729159704
BEIS,Met Office,2021-05-06,08 SOFTWARE LICENCES,TECHNOLOGY AND CIO,CLEARVISION (CM) LIMITED,455537,1319.49,881364801
BEIS,Met Office,2021-05-06,11 SERVICES,SERVICES,INMARSAT SOLUTIONS (CANADA) INC,455538,42.99,766144223
BEIS,Met Office,2021-05-06,11 SERVICES,SERVICES,INMARSAT SOLUTIONS (CANADA) INC,455539,1658.34,766144223
BEIS,Met Office,2021-05-06,11 SERVICES,TECHNOLOGY AND CIO,SSE CONTRACTING LTD,455540,10393.84,570118464
BEIS,Met Office,2021-05-06,08 SOFTWARE LICENCES,MARKETS,DOMO INC,455545,9950,-
BEIS,Met Office,2021-05-11,06 ACCOMMODATION,CHIEF FINANCIAL OFFICER,Glasgow City Council,455546,6321,653051560
BEIS,Met Office,2021-05-11,10 EQUIPMENT MAINTENANCE,TECHNOLOGY AND CIO,IP PERFORMANCE LTD,455547,15390,650541851
BEIS,Met Office,2021-05-11,11 SERVICES,TECHNOLOGY AND CIO,UKCLOUD LTD,455548,1618.38,172647982
BEIS,Met Office,2021-05-06,11 SERVICES,PROGRAMMES,ROWE IT LTD,455549,10885,924964394
BEIS,Met Office,2021-05-06,11 SERVICES,PROGRAMMES,ROWE IT LTD,455550,56856.25,924964394
BEIS,Met Office,2021-05-06,11 SERVICES,PROGRAMMES,ROWE IT LTD,455551,88743.75,924964394
BEIS,Met Office,2021-05-13,11 SERVICES,TECHNOLOGY AND CIO,WIREFAST LTD,455552,3564.71,749536001
BEIS,Met Office,2021-05-06,06 ACCOMMODATION,CHIEF FINANCIAL OFFICER,OCS Group UK Limited,455553,20847.01,GB238034379
BEIS,Met Office,2021-05-06,06 ACCOMMODATION,CHIEF FINANCIAL OFFICER,OCS Group UK Limited,455553,109308.18,GB238034379
BEIS,Met Office,2021-05-06,11 SERVICES,PROGRAMMES,ROWE IT LTD,455554,45461.25,924964394
BEIS,Met Office,2021-05-06,11 SERVICES,PROGRAMMES,ROWE IT LTD,455555,12750,924964394
BEIS,Met Office,2021-05-06,06 ACCOMMODATION,CHIEF FINANCIAL OFFICER,Mitie Landscapes Ltd,455651,5931.19,GB 416 706 654
BEIS,Met Office,2021-05-13,11 SERVICES,CHIEF FINANCIAL OFFICER,MITIE SECURITY LTD,455655,77.16,416706654
BEIS,Met Office,2021-05-13,11 SERVICES,CHIEF FINANCIAL OFFICER,MITIE SECURITY LTD,455658,1388.88,416706654
BEIS,Met Office,2021-05-11,INFORMATION TECHNOLOGY,TECHNOLOGY AND CIO,COMPUTACENTER (UK) LTD,455660,10535.22,490334648
BEIS,Met Office,2021-05-11,11 SERVICES,MARKETS,Bray Leino Ltd,455662,24985.88,135605525
BEIS,Met Office,2021-05-18,11 SERVICES,PROGRAMMES,BAE SYSTEMS APPLIED INTELLIGENCE LIMITED,455663,7504,GB641407169
BEIS,Met Office,2021-05-18,11 SERVICES,PROGRAMMES,BAE SYSTEMS APPLIED INTELLIGENCE LIMITED,455664,15008,GB641407169
BEIS,Met Office,2021-05-11,04 CONTRACTORS,CHIEF FINANCIAL OFFICER,JOBSEEKERS RECRUITMENT SERVICES LTD,455669,674.88,130 1297 14
BEIS,Met Office,2021-05-11,04 CONTRACTORS,CHIEF FINANCIAL OFFICER,JOBSEEKERS RECRUITMENT SERVICES LTD,455670,410.4,130 1297 14
BEIS,Met Office,2021-05-11,04 CONTRACTORS,OFFICE OF THE CEO,JOBSEEKERS RECRUITMENT SERVICES LTD,455671,674.88,130 1297 14
BEIS,Met Office,2021-05-11,04 CONTRACTORS,PEOPLE,JOBSEEKERS RECRUITMENT SERVICES LTD,455672,676.36,130 1297 14
BEIS,Met Office,2021-05-11,11 SERVICES,PEOPLE,LB TRAINING LTD,455673,395,-
BEIS,Met Office,2021-05-06,03 STAFF COSTS T&S,SERVICES,CHARLIE'S TRAVEL LTD,455674,175,783848277
BEIS,Met Office,2021-05-06,03 STAFF COSTS T&S,SERVICES,CHARLIE'S TRAVEL LTD,455674,344,783848277
BEIS,Met Office,2021-05-11,13 MISCELLANEOUS,SCIENCE,AB MULTIMEDIA LTD,455675,80,849333502
BEIS,Met Office,2021-05-11,13 MISCELLANEOUS,SCIENCE,AB MULTIMEDIA LTD,455676,500,849333502
BEIS,Met Office,2021-05-11,13 MISCELLANEOUS,SCIENCE,AB MULTIMEDIA LTD,455677,350,849333502
BEIS,Met Office,2021-05-11,04 CONTRACTORS,MARKETS,JOBSEEKERS RECRUITMENT SERVICES LTD,455682,674.88,130 1297 14
BEIS,Met Office,2021-05-11,04 CONTRACTORS,PROGRAMMES,SOLOS CONSULTANTS LTD,455683,9828,812035476
BEIS,Met Office,2021-05-11,04 CONTRACTORS,TECHNOLOGY AND CIO,SOLOS CONSULTANTS LTD,455684,12905.75,812035476
BEIS,Met Office,2021-05-11,04 CONTRACTORS,TECHNOLOGY AND CIO,SOLOS CONSULTANTS LTD,455685,7790,812035476
BEIS,Met Office,2021-05-11,04 CONTRACTORS,PEOPLE,SOLOS CONSULTANTS LTD,455686,3850,812035476
BEIS,Met Office,2021-05-11,04 CONTRACTORS,TECHNOLOGY AND CIO,SOLOS CONSULTANTS LTD,455687,6821.76,812035476
BEIS,Met Office,2021-05-11,04 CONTRACTORS,CHIEF FINANCIAL OFFICER,SOLOS CONSULTANTS LTD,455688,6035.92,812035476
BEIS,Met Office,2021-05-11,11 SERVICES,PEOPLE,REDACTED PERSONAL DATA,455689,180,143043312
BEIS,Met Office,2021-05-11,11 SERVICES,MARKETS,GEOSMART INFORMATION LTD,455690,5835,172271519
BEIS,Met Office,2021-05-20,06 ACCOMMODATION,CHIEF FINANCIAL OFFICER,SHETLAND GRASSCUTTING,455691,678.5,978367258
BEIS,Met Office,2021-05-11,11 SERVICES,PROGRAMMES,DRIVE CREATIVE STUDIO LTD,455692,1120,167656860
BEIS,Met Office,2021-05-11,11 SERVICES,SCIENCE,MIRANDUS LTD,455693,55,GB250124161
BEIS,Met Office,2021-05-11,11 SERVICES,PEOPLE,REDACTED PERSONAL DATA,455694,10844.78,143043312
BEIS,Met Office,2021-05-11,06 ACCOMMODATION,CHIEF FINANCIAL OFFICER,East Devon District Council,455695,4990,142218990
BEIS,Met Office,2021-05-18,11 SERVICES,PEOPLE,REDACTED PERSONAL DATA,455696,1203,143043312
BEIS,Met Office,2021-05-13,06 ACCOMMODATION,CHIEF FINANCIAL OFFICER,East Devon District Council,455697,197120,142218990
BEIS,Met Office,2021-05-13,04 CONTRACTORS,PEOPLE,MATRIX SCM LIMITED,455699,150484.6,249 5734 68
BEIS,Met Office,2021-05-11,04 CONTRACTORS,TECHNOLOGY AND CIO,SOLOS CONSULTANTS LTD,455700,9880,812035476
BEIS,Met Office,2021-05-12,11 SERVICES,MARKETS,CENTRO INTERNACIONAL DE AGRICULTURA TROPICAL,455701,80351.38,na
BEIS,Met Office,2021-05-11,04 CONTRACTORS,PROGRAMMES,SOLOS CONSULTANTS LTD,455702,16796,812035476
BEIS,Met Office,2021-05-11,04 CONTRACTORS,TECHNOLOGY AND CIO,SOLOS CONSULTANTS LTD,455703,11756.25,812035476
BEIS,Met Office,2021-05-11,03 STAFF COSTS T&S,SERVICES,FALKLAND ISLAND COMPANY LTD,455704,700,N/A
BEIS,Met Office,2021-05-11,03 STAFF COSTS T&S,SERVICES,FALKLAND ISLAND COMPANY LTD,455705,700,N/A
BEIS,Met Office,2021-05-11,03 STAFF COSTS T&S,SERVICES,FALKLAND ISLAND COMPANY LTD,455706,700,N/A
BEIS,Met Office,2021-05-11,04 CONTRACTORS,SERVICES,SOLOS CONSULTANTS LTD,455707,8171.9,812035476
BEIS,Met Office,2021-05-11,04 CONTRACTORS,MARKETS,HAYS SPECIALIST RECRUITMENT LTD,455709,366.15,773695871
BEIS,Met Office,2021-05-11,04 CONTRACTORS,PROGRAMMES,HAYS SPECIALIST RECRUITMENT LTD,455710,366.16,773695871
BEIS,Met Office,2021-05-12,12 INTERNATIONAL,MARKETS,MACITECHSY SOLUTIONS,455711,2769.28,-
BEIS,Met Office,2021-05-11,04 CONTRACTORS,MARKETS,SOLOS CONSULTANTS LTD,455712,8369.82,812035476
BEIS,Met Office,2021-05-11,04 CONTRACTORS,TECHNOLOGY AND CIO,SOLOS CONSULTANTS LTD,455713,12350,812035476
BEIS,Met Office,2021-05-11,04 CONTRACTORS,PROGRAMMES,SOLOS CONSULTANTS LTD,455715,2600,812035476
BEIS,Met Office,2021-05-11,06 ACCOMMODATION,CHIEF FINANCIAL OFFICER,South West Water Ltd,455716,1117.76,236873674
BEIS,Met Office,2021-05-11,04 CONTRACTORS,PROGRAMMES,SOLOS CONSULTANTS LTD,455717,11700,812035476
BEIS,Met Office,2021-05-11,04 CONTRACTORS,PROGRAMMES,SOLOS CONSULTANTS LTD,455718,13005.12,812035476
BEIS,Met Office,2021-05-11,04 CONTRACTORS,TECHNOLOGY AND CIO,SOLOS CONSULTANTS LTD,455719,8359.05,812035476
BEIS,Met Office,2021-05-11,04 CONTRACTORS,CHIEF FINANCIAL OFFICER,SOLOS CONSULTANTS LTD,455720,8778,812035476
BEIS,Met Office,2021-05-11,04 CONTRACTORS,TECHNOLOGY AND CIO,SOLOS CONSULTANTS LTD,455721,12168,812035476
BEIS,Met Office,2021-05-11,04 CONTRACTORS,PROGRAMMES,SOLOS CONSULTANTS LTD,455722,2471.81,812035476
BEIS,Met Office,2021-05-11,04 CONTRACTORS,PROGRAMMES,SOLOS CONSULTANTS LTD,455722,6019.77,812035476
BEIS,Met Office,2021-05-11,04 CONTRACTORS,PROGRAMMES,SOLOS CONSULTANTS LTD,455723,4400,812035476
BEIS,Met Office,2021-05-11,04 CONTRACTORS,PROGRAMMES,SOLOS CONSULTANTS LTD,455724,6567.6,812035476
BEIS,Met Office,2021-05-11,04 CONTRACTORS,PROGRAMMES,SOLOS CONSULTANTS LTD,455725,8478.94,812035476
BEIS,Met Office,2021-05-11,04 CONTRACTORS,PROGRAMMES,SOLOS CONSULTANTS LTD,455726,6405,812035476
BEIS,Met Office,2021-05-11,04 CONTRACTORS,PROGRAMMES,SOLOS CONSULTANTS LTD,455727,3665.24,812035476
BEIS,Met Office,2021-05-11,04 CONTRACTORS,PROGRAMMES,SOLOS CONSULTANTS LTD,455728,17098.1,812035476
BEIS,Met Office,2021-05-11,04 CONTRACTORS,PROGRAMMES,SOLOS CONSULTANTS LTD,455729,13572,812035476
BEIS,Met Office,2021-05-11,04 CONTRACTORS,PROGRAMMES,SOLOS CONSULTANTS LTD,455730,13284.99,812035476
BEIS,Met Office,2021-05-11,04 CONTRACTORS,PROGRAMMES,SOLOS CONSULTANTS LTD,455731,13284.99,812035476
BEIS,Met Office,2021-05-11,04 CONTRACTORS,TECHNOLOGY AND CIO,SOLOS CONSULTANTS LTD,455732,9640.8,812035476
BEIS,Met Office,2021-05-11,11 SERVICES,SERVICES,Trinity House,455733,1189,243120414
BEIS,Met Office,2021-05-11,PLANT AND EQUIPMENT,SERVICES,Trinity House,455734,2603.33,243120414
BEIS,Met Office,2021-05-13,11 SERVICES,TECHNOLOGY AND CIO,AKAMAI TECHNOLOGIES LTD,455735,4918.08,745091237
BEIS,Met Office,2021-05-13,11 SERVICES,TECHNOLOGY AND CIO,AKAMAI TECHNOLOGIES LTD,455735,25819.95,745091237
BEIS,Met Office,2021-05-11,11 SERVICES,SERVICES,WORLDPAY LTD,455766,21.75,991280207
BEIS,Met Office,2021-05-11,08 SOFTWARE LICENCES,PEOPLE,CATALYST IT,455767,2075,978169262
BEIS,Met Office,2021-05-11,06 ACCOMMODATION,CHIEF FINANCIAL OFFICER,Severn Trent Water Ltd,455768,28.08,486985565
BEIS,Met Office,2021-05-11,06 ACCOMMODATION,CHIEF FINANCIAL OFFICER,Severn Trent Water Ltd,455769,-22.23,486985565
BEIS,Met Office,2021-05-11,06 ACCOMMODATION,CHIEF FINANCIAL OFFICER,MACC DEVELOPMENTS LTD,455770,1000,134669201
BEIS,Met Office,2021-05-11,06 ACCOMMODATION,CHIEF FINANCIAL OFFICER,ABOVE THE REST COMMERCIAL CLEANING LTD,455771,38,166969348
BEIS,Met Office,2021-05-20,06 ACCOMMODATION,CHIEF FINANCIAL OFFICER,ABOVE THE REST COMMERCIAL CLEANING LTD,455776,565,166969348
BEIS,Met Office,2021-05-13,11 SERVICES,SERVICES,MERKLE UK THREE LTD T/A MERKLE PERISCOPIX,455777,8315,843316243
BEIS,Met Office,2021-05-11,04 CONTRACTORS,PEOPLE,HAYS SPECIALIST RECRUITMENT LTD,455778,366.15,773695871
BEIS,Met Office,2021-05-11,04 CONTRACTORS,PEOPLE,HAYS SPECIALIST RECRUITMENT LTD,455779,634.67,773695871
BEIS,Met Office,2021-05-11,04 CONTRACTORS,TECHNOLOGY AND CIO,HAYS SPECIALIST RECRUITMENT LTD,455780,558.71,773695871
BEIS,Met Office,2021-05-11,13 MISCELLANEOUS,CHIEF FINANCIAL OFFICER,ANTRIM HILLS SPRING WATER CO LTD,455782,27,517173455
BEIS,Met Office,2021-05-11,11 SERVICES,PROGRAMMES,RSM,455784,4900,890965570
BEIS,Met Office,2021-05-11,11 SERVICES,MARKETS,ROWE IT LTD,455786,6000,924964394
BEIS,Met Office,2021-05-27,03 STAFF COSTS T&S,SERVICES,CARTUS LTD,455787,110,768489458
BEIS,Met Office,2021-05-13,03 STAFF COSTS T&S,SERVICES,CARTUS LTD,455789,110,768489458
BEIS,Met Office,2021-05-11,11 SERVICES,MARKETS,SCIENCE & TECHNOLOGY FACILITIES COUNCIL,455790,123000,287461957
BEIS,Met Office,2021-05-20,03 STAFF COSTS T&S,SERVICES,CARTUS LTD,455791,110,768489458
BEIS,Met Office,2021-05-20,03 STAFF COSTS T&S,SERVICES,CARTUS LTD,455793,110,768489458
BEIS,Met Office,2021-05-13,03 STAFF COSTS T&S,SERVICES,CARTUS LTD,455794,110,768489458
BEIS,Met Office,2021-05-13,06 ACCOMMODATION,CHIEF FINANCIAL OFFICER,POWER NI ENERGY LTD,455795,376.62,617518142
BEIS,Met Office,2021-05-13,06 ACCOMMODATION,CHIEF FINANCIAL OFFICER,CORONA ENERGY LTD,455796,708.2,577704800
BEIS,Met Office,2021-05-13,06 ACCOMMODATION,CHIEF FINANCIAL OFFICER,CORONA ENERGY LTD,455797,14879.92,577704800
BEIS,Met Office,2021-05-11,04 CONTRACTORS,TECHNOLOGY AND CIO,FDM GROUP LIMITED,455799,4320,583540529
BEIS,Met Office,2021-05-11,04 CONTRACTORS,TECHNOLOGY AND CIO,FDM GROUP LIMITED,455800,4320,583540529
BEIS,Met Office,2021-05-11,04 CONTRACTORS,TECHNOLOGY AND CIO,FDM GROUP LIMITED,455801,1350,583540529
BEIS,Met Office,2021-05-11,04 CONTRACTORS,TECHNOLOGY AND CIO,FDM GROUP LIMITED,455802,4050,583540529
BEIS,Met Office,2021-05-11,04 CONTRACTORS,TECHNOLOGY AND CIO,FDM GROUP LIMITED,455803,5130,583540529
BEIS,Met Office,2021-05-11,04 CONTRACTORS,TECHNOLOGY AND CIO,FDM GROUP LIMITED,455804,5400,583540529
BEIS,Met Office,2021-05-11,04 CONTRACTORS,TECHNOLOGY AND CIO,FDM GROUP LIMITED,455805,6000,583540529
BEIS,Met Office,2021-05-13,06 ACCOMMODATION,CHIEF FINANCIAL OFFICER,BUSINESS SUPPORT CENTRE LTD,455814,109.78,927365208
BEIS,Met Office,2021-05-11,04 CONTRACTORS,TECHNOLOGY AND CIO,GCS IT RECRUITMENT SPECIALISTS LTD,455816,13500,896156575
BEIS,Met Office,2021-05-13,11 SERVICES,MARKETS,ACCELERATION EMARKETING,455817,3124.72,848940776
BEIS,Met Office,2021-05-11,03 STAFF COSTS T&S,SERVICES,AIRPORT CAR RENTALS LTD,455818,263,-
BEIS,Met Office,2021-05-11,03 STAFF COSTS T&S,SERVICES,AIRPORT CAR RENTALS LTD,455818,57,-
BEIS,Met Office,2021-05-11,11 SERVICES,TECHNOLOGY AND CIO,HUT 6 SECURITY LIMITED,455819,17500,277 2052 03
BEIS,Met Office,2021-05-11,11 SERVICES,CHIEF FINANCIAL OFFICER,FSI (FM SOLUTIONS) LTD,455820,407.16,166398173
BEIS,Met Office,2021-05-11,11 SERVICES,CHIEF FINANCIAL OFFICER,MAWASEM LTD,455821,15141,197694731
BEIS,Met Office,2021-05-13,03 STAFF COSTS T&S,SERVICES,HITACHI CAPITAL VEHICLE SOLUTIONS,455822,10,GB 823 8248 22
BEIS,Met Office,2021-05-13,03 STAFF COSTS T&S,SCIENCE,HITACHI CAPITAL VEHICLE SOLUTIONS,455823,295.93,GB 823 8248 22
BEIS,Met Office,2021-05-13,03 STAFF COSTS T&S,SERVICES,HITACHI CAPITAL VEHICLE SOLUTIONS,455823,3091.44,GB 823 8248 22
BEIS,Met Office,2021-05-13,03 STAFF COSTS T&S,SCIENCE,HITACHI CAPITAL VEHICLE SOLUTIONS,455824,3091.44,GB 823 8248 22
BEIS,Met Office,2021-05-13,03 STAFF COSTS T&S,SERVICES,HITACHI CAPITAL VEHICLE SOLUTIONS,455824,1775.58,GB 823 8248 22
BEIS,Met Office,2021-05-13,03 STAFF COSTS T&S,SERVICES,HITACHI CAPITAL VEHICLE SOLUTIONS,455824,15457.2,GB 823 8248 22
BEIS,Met Office,2021-05-13,03 STAFF COSTS T&S,SERVICES,HITACHI CAPITAL VEHICLE SOLUTIONS,455824,591.86,GB 823 8248 22
BEIS,Met Office,2021-05-13,03 STAFF COSTS T&S,SERVICES,HITACHI CAPITAL VEHICLE SOLUTIONS,455824,6182.88,GB 823 8248 22
BEIS,Met Office,2021-05-13,11 SERVICES,SCIENCE,University Of Exeter,455825,12500,142047795
BEIS,Met Office,2021-05-11,08 SOFTWARE LICENCES,TECHNOLOGY AND CIO,BOXXE,455827,6051.5,734245248
BEIS,Met Office,2021-05-11,08 SOFTWARE LICENCES,TECHNOLOGY AND CIO,BOXXE,455827,20575.1,734245248
BEIS,Met Office,2021-05-13,04 CONTRACTORS,TECHNOLOGY AND CIO,HAYS SPECIALIST RECRUITMENT LTD,455828,8.88,773695871
BEIS,Met Office,2021-05-13,04 CONTRACTORS,TECHNOLOGY AND CIO,HAYS SPECIALIST RECRUITMENT LTD,455829,8.88,773695871
BEIS,Met Office,2021-05-13,04 CONTRACTORS,PEOPLE,HAYS SPECIALIST RECRUITMENT LTD,455830,12.38,773695871
BEIS,Met Office,2021-05-13,04 CONTRACTORS,PEOPLE,HAYS SPECIALIST RECRUITMENT LTD,455831,10.53,773695871
BEIS,Met Office,2021-05-13,04 CONTRACTORS,PEOPLE,HAYS SPECIALIST RECRUITMENT LTD,455832,12.38,773695871
BEIS,Met Office,2021-05-13,04 CONTRACTORS,PEOPLE,HAYS SPECIALIST RECRUITMENT LTD,455833,3.14,773695871
BEIS,Met Office,2021-05-13,04 CONTRACTORS,PEOPLE,HAYS SPECIALIST RECRUITMENT LTD,455834,9.61,773695871
BEIS,Met Office,2021-05-13,04 CONTRACTORS,TECHNOLOGY AND CIO,HAYS SPECIALIST RECRUITMENT LTD,455835,8.88,773695871
BEIS,Met Office,2021-05-13,04 CONTRACTORS,TECHNOLOGY AND CIO,HAYS SPECIALIST RECRUITMENT LTD,455836,7.2,773695871
BEIS,Met Office,2021-05-13,04 CONTRACTORS,TECHNOLOGY AND CIO,HAYS SPECIALIST RECRUITMENT LTD,455837,8.88,773695871
BEIS,Met Office,2021-05-13,04 CONTRACTORS,TECHNOLOGY AND CIO,HAYS SPECIALIST RECRUITMENT LTD,455838,8.88,773695871
BEIS,Met Office,2021-05-13,04 CONTRACTORS,TECHNOLOGY AND CIO,HAYS SPECIALIST RECRUITMENT LTD,455839,8.88,773695871
BEIS,Met Office,2021-05-13,04 CONTRACTORS,PEOPLE,HAYS SPECIALIST RECRUITMENT LTD,455852,9.61,773695871
BEIS,Met Office,2021-05-13,04 CONTRACTORS,PEOPLE,HAYS SPECIALIST RECRUITMENT LTD,455853,9.61,773695871
BEIS,Met Office,2021-05-13,04 CONTRACTORS,PEOPLE,HAYS SPECIALIST RECRUITMENT LTD,455854,9.61,773695871
BEIS,Met Office,2021-05-13,04 CONTRACTORS,PEOPLE,HAYS SPECIALIST RECRUITMENT LTD,455855,9.61,773695871
BEIS,Met Office,2021-05-13,04 CONTRACTORS,TECHNOLOGY AND CIO,HAYS SPECIALIST RECRUITMENT LTD,455856,8.88,773695871
BEIS,Met Office,2021-05-13,04 CONTRACTORS,TECHNOLOGY AND CIO,HAYS SPECIALIST RECRUITMENT LTD,455857,8.88,773695871
BEIS,Met Office,2021-05-13,04 CONTRACTORS,TECHNOLOGY AND CIO,HAYS SPECIALIST RECRUITMENT LTD,455858,8.88,773695871
BEIS,Met Office,2021-05-13,04 CONTRACTORS,TECHNOLOGY AND CIO,HAYS SPECIALIST RECRUITMENT LTD,455859,5.4,773695871
BEIS,Met Office,2021-05-13,04 CONTRACTORS,TECHNOLOGY AND CIO,HAYS SPECIALIST RECRUITMENT LTD,455860,8.88,773695871
BEIS,Met Office,2021-05-13,04 CONTRACTORS,PEOPLE,HAYS SPECIALIST RECRUITMENT LTD,455861,9.61,773695871
BEIS,Met Office,2021-05-13,04 CONTRACTORS,PEOPLE,HAYS SPECIALIST RECRUITMENT LTD,455862,9.61,773695871
BEIS,Met Office,2021-05-13,04 CONTRACTORS,PEOPLE,HAYS SPECIALIST RECRUITMENT LTD,455863,9.61,773695871
BEIS,Met Office,2021-05-13,04 CONTRACTORS,TECHNOLOGY AND CIO,HAYS SPECIALIST RECRUITMENT LTD,455864,8.88,773695871
BEIS,Met Office,2021-05-13,04 CONTRACTORS,TECHNOLOGY AND CIO,HAYS SPECIALIST RECRUITMENT LTD,455865,8.88,773695871
BEIS,Met Office,2021-05-13,04 CONTRACTORS,TECHNOLOGY AND CIO,HAYS SPECIALIST RECRUITMENT LTD,455866,8.88,773695871
BEIS,Met Office,2021-05-13,04 CONTRACTORS,TECHNOLOGY AND CIO,HAYS SPECIALIST RECRUITMENT LTD,455867,8.88,773695871
BEIS,Met Office,2021-05-13,04 CONTRACTORS,PEOPLE,HAYS SPECIALIST RECRUITMENT LTD,455868,9.61,773695871
BEIS,Met Office,2021-05-13,04 CONTRACTORS,PEOPLE,HAYS SPECIALIST RECRUITMENT LTD,455869,6.47,773695871
BEIS,Met Office,2021-05-13,04 CONTRACTORS,PEOPLE,HAYS SPECIALIST RECRUITMENT LTD,455870,12.38,773695871
BEIS,Met Office,2021-05-11,04 CONTRACTORS,PEOPLE,HAYS SPECIALIST RECRUITMENT LTD,455871,12.38,773695871
BEIS,Met Office,2021-05-13,04 CONTRACTORS,PEOPLE,HAYS SPECIALIST RECRUITMENT LTD,455872,12.38,773695871
BEIS,Met Office,2021-05-13,04 CONTRACTORS,PEOPLE,HAYS SPECIALIST RECRUITMENT LTD,455873,12.38,773695871
BEIS,Met Office,2021-05-13,04 CONTRACTORS,PEOPLE,HAYS SPECIALIST RECRUITMENT LTD,455874,12.38,773695871
BEIS,Met Office,2021-05-13,04 CONTRACTORS,TECHNOLOGY AND CIO,HAYS SPECIALIST RECRUITMENT LTD,455875,8.88,773695871
BEIS,Met Office,2021-05-13,04 CONTRACTORS,PEOPLE,HAYS SPECIALIST RECRUITMENT LTD,455876,12.38,773695871
BEIS,Met Office,2021-05-13,04 CONTRACTORS,PEOPLE,HAYS SPECIALIST RECRUITMENT LTD,455877,9.61,773695871
BEIS,Met Office,2021-05-13,04 CONTRACTORS,PEOPLE,HAYS SPECIALIST RECRUITMENT LTD,455878,9.61,773695871
BEIS,Met Office,2021-05-13,04 CONTRACTORS,PEOPLE,HAYS SPECIALIST RECRUITMENT LTD,455879,9.61,773695871
BEIS,Met Office,2021-05-13,04 CONTRACTORS,PEOPLE,HAYS SPECIALIST RECRUITMENT LTD,455880,6.47,773695871
BEIS,Met Office,2021-05-13,04 CONTRACTORS,TECHNOLOGY AND CIO,HAYS SPECIALIST RECRUITMENT LTD,455881,8.88,773695871
BEIS,Met Office,2021-05-13,04 CONTRACTORS,TECHNOLOGY AND CIO,HAYS SPECIALIST RECRUITMENT LTD,455882,8.88,773695871
BEIS,Met Office,2021-05-13,04 CONTRACTORS,PEOPLE,HAYS SPECIALIST RECRUITMENT LTD,455883,9.61,773695871
BEIS,Met Office,2021-05-13,04 CONTRACTORS,PEOPLE,HAYS SPECIALIST RECRUITMENT LTD,455884,3.33,773695871
BEIS,Met Office,2021-05-13,04 CONTRACTORS,TECHNOLOGY AND CIO,HAYS SPECIALIST RECRUITMENT LTD,455885,8.88,773695871
BEIS,Met Office,2021-05-13,04 CONTRACTORS,TECHNOLOGY AND CIO,HAYS SPECIALIST RECRUITMENT LTD,455886,5.76,773695871
BEIS,Met Office,2021-05-11,04 CONTRACTORS,PEOPLE,HAYS SPECIALIST RECRUITMENT LTD,455887,9.61,773695871
BEIS,Met Office,2021-05-11,04 CONTRACTORS,PEOPLE,HAYS SPECIALIST RECRUITMENT LTD,455888,9.61,773695871
BEIS,Met Office,2021-05-11,04 CONTRACTORS,PEOPLE,HAYS SPECIALIST RECRUITMENT LTD,455889,9.61,773695871
BEIS,Met Office,2021-05-11,04 CONTRACTORS,PEOPLE,HAYS SPECIALIST RECRUITMENT LTD,455890,9.61,773695871
BEIS,Met Office,2021-05-11,04 CONTRACTORS,TECHNOLOGY AND CIO,HAYS SPECIALIST RECRUITMENT LTD,455891,8.88,773695871
BEIS,Met Office,2021-05-11,04 CONTRACTORS,TECHNOLOGY AND CIO,HAYS SPECIALIST RECRUITMENT LTD,455892,8.88,773695871
BEIS,Met Office,2021-05-11,04 CONTRACTORS,TECHNOLOGY AND CIO,HAYS SPECIALIST RECRUITMENT LTD,455893,8.88,773695871
BEIS,Met Office,2021-05-11,04 CONTRACTORS,TECHNOLOGY AND CIO,HAYS SPECIALIST RECRUITMENT LTD,455894,8.88,773695871
BEIS,Met Office,2021-05-11,04 CONTRACTORS,MARKETS,HAYS SPECIALIST RECRUITMENT LTD,455895,5.54,773695871
BEIS,Met Office,2021-05-11,04 CONTRACTORS,MARKETS,HAYS SPECIALIST RECRUITMENT LTD,455896,5.54,773695871
BEIS,Met Office,2021-05-11,04 CONTRACTORS,TECHNOLOGY AND CIO,HAYS SPECIALIST RECRUITMENT LTD,455897,3.6,773695871
BEIS,Met Office,2021-05-11,04 CONTRACTORS,TECHNOLOGY AND CIO,HAYS SPECIALIST RECRUITMENT LTD,455898,8.88,773695871
BEIS,Met Office,2021-05-11,04 CONTRACTORS,TECHNOLOGY AND CIO,HAYS SPECIALIST RECRUITMENT LTD,455899,7.44,773695871
BEIS,Met Office,2021-05-11,04 CONTRACTORS,TECHNOLOGY AND CIO,HAYS SPECIALIST RECRUITMENT LTD,455900,7.44,773695871
BEIS,Met Office,2021-05-11,04 CONTRACTORS,TECHNOLOGY AND CIO,HAYS SPECIALIST RECRUITMENT LTD,455901,8.88,773695871
BEIS,Met Office,2021-05-11,04 CONTRACTORS,TECHNOLOGY AND CIO,HAYS SPECIALIST RECRUITMENT LTD,455902,8.88,773695871
BEIS,Met Office,2021-05-18,11 SERVICES,CHIEF FINANCIAL OFFICER,SURE SOUTH ATLANTIC LTD,455903,9723.15,-
BEIS,Met Office,2021-05-11,04 CONTRACTORS,MARKETS,HAYS SPECIALIST RECRUITMENT LTD,455904,5.54,773695871
BEIS,Met Office,2021-05-11,04 CONTRACTORS,MARKETS,HAYS SPECIALIST RECRUITMENT LTD,455906,5.54,773695871
BEIS,Met Office,2021-05-11,04 CONTRACTORS,TECHNOLOGY AND CIO,HAYS SPECIALIST RECRUITMENT LTD,455908,8.88,773695871
BEIS,Met Office,2021-05-11,04 CONTRACTORS,PEOPLE,HAYS SPECIALIST RECRUITMENT LTD,455909,9.61,773695871
BEIS,Met Office,2021-05-11,04 CONTRACTORS,TECHNOLOGY AND CIO,HAYS SPECIALIST RECRUITMENT LTD,455910,8.88,773695871
BEIS,Met Office,2021-05-18,04 CONTRACTORS,PEOPLE,HAYS SPECIALIST RECRUITMENT LTD,455911,9.61,773695871
BEIS,Met Office,2021-05-11,04 CONTRACTORS,TECHNOLOGY AND CIO,HAYS SPECIALIST RECRUITMENT LTD,455912,8.88,773695871
BEIS,Met Office,2021-05-11,04 CONTRACTORS,TECHNOLOGY AND CIO,HAYS SPECIALIST RECRUITMENT LTD,455913,8.88,773695871
BEIS,Met Office,2021-05-11,04 CONTRACTORS,PEOPLE,HAYS SPECIALIST RECRUITMENT LTD,455914,9.61,773695871
BEIS,Met Office,2021-05-11,04 CONTRACTORS,PEOPLE,HAYS SPECIALIST RECRUITMENT LTD,455915,6.25,773695871
BEIS,Met Office,2021-05-11,04 CONTRACTORS,PEOPLE,HAYS SPECIALIST RECRUITMENT LTD,455916,6.47,773695871
BEIS,Met Office,2021-05-11,04 CONTRACTORS,PEOPLE,HAYS SPECIALIST RECRUITMENT LTD,455917,9.61,773695871
BEIS,Met Office,2021-05-11,04 CONTRACTORS,PEOPLE,HAYS SPECIALIST RECRUITMENT LTD,455918,9.61,773695871
BEIS,Met Office,2021-05-11,11 SERVICES,CHIEF FINANCIAL OFFICER,SURE SOUTH ATLANTIC LTD,455919,1578.5,-
BEIS,Met Office,2021-05-11,13 MISCELLANEOUS,CHIEF FINANCIAL OFFICER,POSTURITE (UK) LTD,455920,469.9,583565114
BEIS,Met Office,2021-05-13,11 SERVICES,SERVICES,ROCKSURE SYSTEMS LTD T/A PEOPLESAFE,455921,1728,859951462
BEIS,Met Office,2021-05-13,06 ACCOMMODATION,CHIEF FINANCIAL OFFICER,Severn Trent Water Ltd,455922,330.87,486985565
BEIS,Met Office,2021-05-11,06 ACCOMMODATION,CHIEF FINANCIAL OFFICER,EXCEL AV LIMITED,455923,5676.97,994305005
BEIS,Met Office,2021-05-11,11 SERVICES,CHIEF FINANCIAL OFFICER,APPLE CENTRAL TAXIS,455925,140,449238720
BEIS,Met Office,2021-05-13,13 MISCELLANEOUS,SERVICES,Royal Meteorological Society,455926,248.8,-
BEIS,Met Office,2021-05-11,03 STAFF COSTS T&S,CHIEF FINANCIAL OFFICER,ENTERPRISE RENT A CAR UK LTD,455927,291.54,215557314
BEIS,Met Office,2021-05-11,03 STAFF COSTS T&S,CHIEF FINANCIAL OFFICER,ENTERPRISE RENT A CAR UK LTD,455928,901.88,215557314
BEIS,Met Office,2021-05-11,11 SERVICES,CHIEF FINANCIAL OFFICER,TELEFONICA O2 UK LIMITED,455929,7248.54,778603785
BEIS,Met Office,2021-05-19,06 ACCOMMODATION,CHIEF FINANCIAL OFFICER,JAMES & MARCIA BENJAMIN,455930,520,-
BEIS,Met Office,2021-05-13,11 SERVICES,MARKETS,CACI LTD,455931,72964.01,380609841
BEIS,Met Office,2021-05-13,06 ACCOMMODATION,CHIEF FINANCIAL OFFICER,Scottish Government,455943,30706,888842551
BEIS,Met Office,2021-05-13,04 CONTRACTORS,PEOPLE,JOBSEEKERS RECRUITMENT SERVICES LTD,455944,676.36,130 1297 14
BEIS,Met Office,2021-05-13,04 CONTRACTORS,MARKETS,JOBSEEKERS RECRUITMENT SERVICES LTD,455945,674.88,130 1297 14
BEIS,Met Office,2021-05-13,04 CONTRACTORS,PEOPLE,JOBSEEKERS RECRUITMENT SERVICES LTD,455946,539.26,130 1297 14
BEIS,Met Office,2021-05-13,04 CONTRACTORS,OFFICE OF THE CEO,JOBSEEKERS RECRUITMENT SERVICES LTD,455947,538.08,130 1297 14
BEIS,Met Office,2021-05-13,04 CONTRACTORS,MARKETS,JOBSEEKERS RECRUITMENT SERVICES LTD,455948,538.08,130 1297 14
BEIS,Met Office,2021-05-13,04 CONTRACTORS,PEOPLE,JOBSEEKERS RECRUITMENT SERVICES LTD,455949,548.4,130 1297 14
BEIS,Met Office,2021-05-13,04 CONTRACTORS,CHIEF FINANCIAL OFFICER,JOBSEEKERS RECRUITMENT SERVICES LTD,455950,528.96,130 1297 14
BEIS,Met Office,2021-05-13,04 CONTRACTORS,MARKETS,JOBSEEKERS RECRUITMENT SERVICES LTD,455951,538.08,130 1297 14
BEIS,Met Office,2021-05-13,04 CONTRACTORS,CHIEF FINANCIAL OFFICER,JOBSEEKERS RECRUITMENT SERVICES LTD,455952,273.6,130 1297 14
BEIS,Met Office,2021-05-13,08 SOFTWARE LICENCES,TECHNOLOGY AND CIO,ORACLE CORPORATION UK LTD,455953,10727.61,391313073
BEIS,Met Office,2021-05-13,10 EQUIPMENT MAINTENANCE,TECHNOLOGY AND CIO,ORACLE CORPORATION UK LTD,455954,15487.57,391313073
BEIS,Met Office,2021-05-13,10 EQUIPMENT MAINTENANCE,TECHNOLOGY AND CIO,ORACLE CORPORATION UK LTD,455993,15487.57,391313073
BEIS,Met Office,2021-05-13,10 EQUIPMENT MAINTENANCE,TECHNOLOGY AND CIO,ORACLE CORPORATION UK LTD,456008,19389.61,391313073
BEIS,Met Office,2021-05-13,10 EQUIPMENT MAINTENANCE,TECHNOLOGY AND CIO,ORACLE CORPORATION UK LTD,456009,19009.42,391313073
BEIS,Met Office,2021-05-13,10 EQUIPMENT MAINTENANCE,TECHNOLOGY AND CIO,ORACLE CORPORATION UK LTD,456010,4798.93,391313073
BEIS,Met Office,2021-05-13,10 EQUIPMENT MAINTENANCE,TECHNOLOGY AND CIO,ORACLE CORPORATION UK LTD,456011,27851.2,391313073
BEIS,Met Office,2021-05-13,10 EQUIPMENT MAINTENANCE,TECHNOLOGY AND CIO,ORACLE CORPORATION UK LTD,456012,27434.72,391313073
BEIS,Met Office,2021-05-18,03 STAFF COSTS T&S,SERVICES,DBS FINANCE RECEIPTS CTS,456013,5651,888805068
BEIS,Met Office,2021-05-19,11 SERVICES,MARKETS,IGAD CLIMATE PREDICTION & APPLICATIONS CNTR,456014,172798.71,-
BEIS,Met Office,2021-05-13,06 ACCOMMODATION,CHIEF FINANCIAL OFFICER,SAFESTORE LTD,456015,2815.28,722887607
BEIS,Met Office,2021-05-19,11 SERVICES,MARKETS,IGAD CLIMATE PREDICTION & APPLICATIONS CNTR,456016,36036.86,-
BEIS,Met Office,2021-05-19,11 SERVICES,MARKETS,IGAD CLIMATE PREDICTION & APPLICATIONS CNTR,456016,119418.5,-
BEIS,Met Office,2021-05-13,11 SERVICES,PROGRAMMES,Ernst & Young Llp,456018,5104,773831408
BEIS,Met Office,2021-05-13,04 CONTRACTORS,PEOPLE,HAYS SPECIALIST RECRUITMENT LTD,456019,8.68,773695871
BEIS,Met Office,2021-05-13,04 CONTRACTORS,PEOPLE,HAYS SPECIALIST RECRUITMENT LTD,456020,10.71,773695871
BEIS,Met Office,2021-05-13,04 CONTRACTORS,PEOPLE,HAYS SPECIALIST RECRUITMENT LTD,456021,10.71,773695871
BEIS,Met Office,2021-05-13,04 CONTRACTORS,PEOPLE,HAYS SPECIALIST RECRUITMENT LTD,456022,10.71,773695871
BEIS,Met Office,2021-05-13,04 CONTRACTORS,PEOPLE,HAYS SPECIALIST RECRUITMENT LTD,456023,10.71,773695871
BEIS,Met Office,2021-05-13,04 CONTRACTORS,PEOPLE,HAYS SPECIALIST RECRUITMENT LTD,456024,10.71,773695871
BEIS,Met Office,2021-05-13,04 CONTRACTORS,PEOPLE,HAYS SPECIALIST RECRUITMENT LTD,456025,6.51,773695871
BEIS,Met Office,2021-05-13,04 CONTRACTORS,PEOPLE,HAYS SPECIALIST RECRUITMENT LTD,456026,10.71,773695871
BEIS,Met Office,2021-05-13,04 CONTRACTORS,PEOPLE,HAYS SPECIALIST RECRUITMENT LTD,456027,10.71,773695871
BEIS,Met Office,2021-05-13,04 CONTRACTORS,PEOPLE,HAYS SPECIALIST RECRUITMENT LTD,456028,10.71,773695871
BEIS,Met Office,2021-05-13,04 CONTRACTORS,PEOPLE,HAYS SPECIALIST RECRUITMENT LTD,456029,10.71,773695871
BEIS,Met Office,2021-05-13,04 CONTRACTORS,PEOPLE,HAYS SPECIALIST RECRUITMENT LTD,456030,10.71,773695871
BEIS,Met Office,2021-05-13,04 CONTRACTORS,PEOPLE,HAYS SPECIALIST RECRUITMENT LTD,456031,4.2,773695871
BEIS,Met Office,2021-05-13,04 CONTRACTORS,PEOPLE,HAYS SPECIALIST RECRUITMENT LTD,456032,10.71,773695871
BEIS,Met Office,2021-05-13,04 CONTRACTORS,PEOPLE,HAYS SPECIALIST RECRUITMENT LTD,456033,10.71,773695871
BEIS,Met Office,2021-05-13,04 CONTRACTORS,PEOPLE,HAYS SPECIALIST RECRUITMENT LTD,456034,4.34,773695871
BEIS,Met Office,2021-05-13,04 CONTRACTORS,PEOPLE,HAYS SPECIALIST RECRUITMENT LTD,456035,2.17,773695871
BEIS,Met Office,2021-05-13,04 CONTRACTORS,PEOPLE,HAYS SPECIALIST RECRUITMENT LTD,456036,10.71,773695871
BEIS,Met Office,2021-05-13,04 CONTRACTORS,PEOPLE,HAYS SPECIALIST RECRUITMENT LTD,456037,10.71,773695871
BEIS,Met Office,2021-05-13,04 CONTRACTORS,PEOPLE,HAYS SPECIALIST RECRUITMENT LTD,456038,4.2,773695871
BEIS,Met Office,2021-05-13,04 CONTRACTORS,PEOPLE,HAYS SPECIALIST RECRUITMENT LTD,456039,4.34,773695871
BEIS,Met Office,2021-05-13,04 CONTRACTORS,PEOPLE,HAYS SPECIALIST RECRUITMENT LTD,456040,4.2,773695871
BEIS,Met Office,2021-05-13,04 CONTRACTORS,PEOPLE,HAYS SPECIALIST RECRUITMENT LTD,456041,10.42,773695871
BEIS,Met Office,2021-05-13,04 CONTRACTORS,PEOPLE,HAYS SPECIALIST RECRUITMENT LTD,456042,10.71,773695871
BEIS,Met Office,2021-05-13,04 CONTRACTORS,PEOPLE,HAYS SPECIALIST RECRUITMENT LTD,456043,10.71,773695871
BEIS,Met Office,2021-05-13,04 CONTRACTORS,PEOPLE,HAYS SPECIALIST RECRUITMENT LTD,456044,10.71,773695871
BEIS,Met Office,2021-05-13,04 CONTRACTORS,PEOPLE,HAYS SPECIALIST RECRUITMENT LTD,456045,10.71,773695871
BEIS,Met Office,2021-05-13,04 CONTRACTORS,PEOPLE,HAYS SPECIALIST RECRUITMENT LTD,456046,10.71,773695871
BEIS,Met Office,2021-05-13,04 CONTRACTORS,PEOPLE,HAYS SPECIALIST RECRUITMENT LTD,456047,10.71,773695871
BEIS,Met Office,2021-05-13,04 CONTRACTORS,PEOPLE,HAYS SPECIALIST RECRUITMENT LTD,456048,-131.26,773695871
BEIS,Met Office,2021-05-13,04 CONTRACTORS,PEOPLE,HAYS SPECIALIST RECRUITMENT LTD,456049,10.71,773695871
BEIS,Met Office,2021-05-13,04 CONTRACTORS,PEOPLE,HAYS SPECIALIST RECRUITMENT LTD,456050,10.71,773695871
BEIS,Met Office,2021-05-18,04 CONTRACTORS,TECHNOLOGY AND CIO,WA CONSULTANTS LTD,456052,1745.49,876328977
BEIS,Met Office,2021-05-13,10 EQUIPMENT MAINTENANCE,SERVICES,YOUNG CALIBRATION LIMITED,456053,3250,673900720
BEIS,Met Office,2021-05-13,11 SERVICES,SERVICES,YOUNG CALIBRATION LIMITED,456053,15,673900720
BEIS,Met Office,2021-05-18,11 SERVICES,CHIEF FINANCIAL OFFICER,EXPONENTIAL-E,456057,1477.79,GB798572653
BEIS,Met Office,2021-05-18,11 SERVICES,CHIEF FINANCIAL OFFICER,ANVIL MOBILE LIMITED,456058,82.6,981686175
BEIS,Met Office,2021-05-18,11 SERVICES,CHIEF FINANCIAL OFFICER,ANVIL MOBILE LIMITED,456058,98.6,981686175
BEIS,Met Office,2021-05-18,11 SERVICES,CHIEF FINANCIAL OFFICER,ANVIL MOBILE LIMITED,456058,111.3,981686175
BEIS,Met Office,2021-05-18,11 SERVICES,CHIEF FINANCIAL OFFICER,ANVIL MOBILE LIMITED,456058,34.85,981686175
BEIS,Met Office,2021-05-18,11 SERVICES,CHIEF FINANCIAL OFFICER,ANVIL MOBILE LIMITED,456058,43.6,981686175
BEIS,Met Office,2021-05-20,11 SERVICES,MARKETS,SPOKE (INTERACTIVE) LTD,456059,700,840156451
BEIS,Met Office,2021-05-13,10 EQUIPMENT MAINTENANCE,TECHNOLOGY AND CIO,ORACLE CORPORATION UK LTD,456060,167212.21,391313073
BEIS,Met Office,2021-05-13,10 EQUIPMENT MAINTENANCE,TECHNOLOGY AND CIO,ORACLE CORPORATION UK LTD,456061,57053.15,391313073
BEIS,Met Office,2021-05-20,06 ACCOMMODATION,CHIEF FINANCIAL OFFICER,REDACTED PERSONAL DATA,456062,155,899936427
BEIS,Met Office,2021-05-20,06 ACCOMMODATION,CHIEF FINANCIAL OFFICER,REDACTED PERSONAL DATA,456063,95,899936427
BEIS,Met Office,2021-05-18,11 SERVICES,CHIEF FINANCIAL OFFICER,GAMMA TELECOM LTD,456064,104.41,823820344
BEIS,Met Office,2021-05-18,11 SERVICES,CHIEF FINANCIAL OFFICER,GAMMA TELECOM LTD,456064,27272.86,823820344
BEIS,Met Office,2021-05-13,06 ACCOMMODATION,CHIEF FINANCIAL OFFICER,RIVER RIDGE,456065,135.4,176286083
BEIS,Met Office,2021-05-13,11 SERVICES,CHIEF FINANCIAL OFFICER,SURE SOUTH ATLANTIC LTD (ST HELENA),456066,4267.09,30005
BEIS,Met Office,2021-05-13,04 CONTRACTORS,PEOPLE,HAYS SPECIALIST RECRUITMENT LTD,456067,135.6,773695871
BEIS,Met Office,2021-05-13,11 SERVICES,CHIEF FINANCIAL OFFICER,SURE SOUTH ATLANTIC LTD (ST HELENA),456068,264,30005
BEIS,Met Office,2021-05-25,11 SERVICES,TECHNOLOGY AND CIO,BAE SYSTEMS APPLIED INTELLIGENCE LIMITED,456069,15075.6,GB641407169
BEIS,Met Office,2021-05-25,11 SERVICES,TECHNOLOGY AND CIO,BAE SYSTEMS APPLIED INTELLIGENCE LIMITED,456070,8115.6,GB641407169
BEIS,Met Office,2021-05-18,11 SERVICES,PROGRAMMES,BAE SYSTEMS APPLIED INTELLIGENCE LIMITED,456071,17300.22,GB641407169
BEIS,Met Office,2021-05-18,11 SERVICES,PROGRAMMES,BAE SYSTEMS APPLIED INTELLIGENCE LIMITED,456072,15477,GB641407169
BEIS,Met Office,2021-05-13,04 CONTRACTORS,TECHNOLOGY AND CIO,OUTSOURCE UK LIMITED,456073,15976.34,576118722
BEIS,Met Office,2021-05-13,04 CONTRACTORS,PROGRAMMES,OUTSOURCE UK LIMITED,456074,3405.12,576118722
BEIS,Met Office,2021-05-18,10 EQUIPMENT MAINTENANCE,SERVICES,YOUNG CALIBRATION LIMITED,456075,1800,673900720
BEIS,Met Office,2021-05-18,11 SERVICES,SERVICES,YOUNG CALIBRATION LIMITED,456075,15,673900720
BEIS,Met Office,2021-05-25,11 SERVICES,TECHNOLOGY AND CIO,BAE SYSTEMS APPLIED INTELLIGENCE LIMITED,456076,7160.91,GB641407169
BEIS,Met Office,2021-05-25,11 SERVICES,TECHNOLOGY AND CIO,BAE SYSTEMS APPLIED INTELLIGENCE LIMITED,456077,12540,GB641407169
BEIS,Met Office,2021-05-13,11 SERVICES,CHIEF FINANCIAL OFFICER,National Oceanography Centre,456078,12.81,GB 338 5487 64
BEIS,Met Office,2021-05-13,FIXTURE & FITTINGS,CHIEF FINANCIAL OFFICER,NMCN PLC,456079,98024.93,GB648191516
BEIS,Met Office,2021-05-13,FIXTURE & FITTINGS,CHIEF FINANCIAL OFFICER,NMCN PLC,456079,3568.54,GB648191516
BEIS,Met Office,2021-05-13,FIXTURE & FITTINGS,CHIEF FINANCIAL OFFICER,NMCN PLC,456079,712.54,GB648191516
BEIS,Met Office,2021-05-13,FIXTURE & FITTINGS,CHIEF FINANCIAL OFFICER,NMCN PLC,456079,874.34,GB648191516
BEIS,Met Office,2021-05-13,FIXTURE & FITTINGS,CHIEF FINANCIAL OFFICER,NMCN PLC,456079,1977.02,GB648191516
BEIS,Met Office,2021-05-13,FIXTURE & FITTINGS,CHIEF FINANCIAL OFFICER,NMCN PLC,456079,594.07,GB648191516
BEIS,Met Office,2021-05-13,FIXTURE & FITTINGS,CHIEF FINANCIAL OFFICER,NMCN PLC,456079,8337.71,GB648191516
BEIS,Met Office,2021-05-13,FIXTURE & FITTINGS,CHIEF FINANCIAL OFFICER,NMCN PLC,456079,8933,GB648191516
BEIS,Met Office,2021-05-13,07 EQUIPMENT,SCIENCE,METALWORK SOLUTIONS LTD & DIRECT ASSEMBLY SOL,456083,327.53,833433540
BEIS,Met Office,2021-05-25,11 SERVICES,TECHNOLOGY AND CIO,BAE SYSTEMS APPLIED INTELLIGENCE LIMITED,456084,10560,GB641407169
BEIS,Met Office,2021-05-13,04 CONTRACTORS,PEOPLE,JOBSEEKERS RECRUITMENT SERVICES LTD,456085,539.26,130 1297 14
BEIS,Met Office,2021-05-13,04 CONTRACTORS,MARKETS,JOBSEEKERS RECRUITMENT SERVICES LTD,456086,547.2,130 1297 14
BEIS,Met Office,2021-05-13,04 CONTRACTORS,OFFICE OF THE CEO,JOBSEEKERS RECRUITMENT SERVICES LTD,456087,405.84,130 1297 14
BEIS,Met Office,2021-05-13,04 CONTRACTORS,PEOPLE,JOBSEEKERS RECRUITMENT SERVICES LTD,456088,548.4,130 1297 14
BEIS,Met Office,2021-05-13,11 SERVICES,MARKETS,INTERNATIONAL ORGANISATION DEVELOPMENT LTD,456089,5260,729 42 46 18
BEIS,Met Office,2021-05-13,11 SERVICES,MARKETS,INTERNATIONAL ORGANISATION DEVELOPMENT LTD,456090,2022.5,729 42 46 18
BEIS,Met Office,2021-05-13,04 CONTRACTORS,CHIEF FINANCIAL OFFICER,JOBSEEKERS RECRUITMENT SERVICES LTD,456091,548.4,130 1297 14
BEIS,Met Office,2021-05-13,04 CONTRACTORS,MARKETS,JOBSEEKERS RECRUITMENT SERVICES LTD,456092,547.2,130 1297 14
BEIS,Met Office,2021-05-13,04 CONTRACTORS,CHIEF FINANCIAL OFFICER,JOBSEEKERS RECRUITMENT SERVICES LTD,456093,425.01,130 1297 14
BEIS,Met Office,2021-05-20,11 SERVICES,PROGRAMMES,JEREMY BENN ASSOCIATES LIMITED,456097,32679,GB 665300941
BEIS,Met Office,2021-05-18,06 ACCOMMODATION,CHIEF FINANCIAL OFFICER,FAIR ISLE ELECTRICITY COMPANY LTD,456098,141.38,774548783
BEIS,Met Office,2021-05-18,11 SERVICES,CHIEF FINANCIAL OFFICER,ADAM PHONES LTD,456104,171,538877093
BEIS,Met Office,2021-05-18,11 SERVICES,PROGRAMMES,GAMMA TELECOM LTD,456105,3230.97,823820344
BEIS,Met Office,2021-05-20,11 SERVICES,PEOPLE,HAWK INCENTIVES LTD,456106,14647.5,238839422
BEIS,Met Office,2021-05-20,11 SERVICES,SCIENCE,UNIVERSITY OF READING,456112,25507,200012659
BEIS,Met Office,2021-05-20,04 CONTRACTORS,PEOPLE,MATRIX SCM LIMITED,456113,126675.53,249 5734 68
BEIS,Met Office,2021-05-20,11 SERVICES,SCIENCE,UNIVERSITY OF READING,456114,9064.96,200012659
BEIS,Met Office,2021-05-18,11 SERVICES,SERVICES,CLOUDREACH EUROPE LIMITED,456115,7300,978187168
BEIS,Met Office,2021-05-18,11 SERVICES,TECHNOLOGY AND CIO,ENTERPRISEDB UK LIMITED,456116,22848,GB 886 1062 11
BEIS,Met Office,2021-05-18,11 SERVICES,CHIEF FINANCIAL OFFICER,SURE SOUTH ATLANTIC LTD,456117,1828.38,NOVATREG
BEIS,Met Office,2021-05-18,11 SERVICES,TECHNOLOGY AND CIO,CLOUDREACH EUROPE LIMITED,456118,5150,978187168
BEIS,Met Office,2021-05-18,06 ACCOMMODATION,CHIEF FINANCIAL OFFICER,EDF ENERGY CUSTOMERS PLC,456119,110388.2,523041202
BEIS,Met Office,2021-05-18,06 ACCOMMODATION,CHIEF FINANCIAL OFFICER,EDF ENERGY CUSTOMERS PLC,456120,109230.74,523041202
BEIS,Met Office,2021-05-18,06 ACCOMMODATION,CHIEF FINANCIAL OFFICER,EDF ENERGY CUSTOMERS PLC,456121,376438.16,523041202
BEIS,Met Office,2021-05-25,11 SERVICES,TECHNOLOGY AND CIO,BAE SYSTEMS APPLIED INTELLIGENCE LIMITED,456122,5400,GB641407169
BEIS,Met Office,2021-05-20,11 SERVICES,SCIENCE,UNIVERSITY OF READING,456123,25000,200012659
BEIS,Met Office,2021-05-18,11 SERVICES,PROGRAMMES,BAE SYSTEMS APPLIED INTELLIGENCE LIMITED,456124,18709,GB641407169
BEIS,Met Office,2021-05-18,04 CONTRACTORS,PEOPLE,HAYS SPECIALIST RECRUITMENT LTD,456125,7.4,773695871
BEIS,Met Office,2021-05-18,04 CONTRACTORS,PEOPLE,HAYS SPECIALIST RECRUITMENT LTD,456126,7.95,773695871
BEIS,Met Office,2021-05-18,04 CONTRACTORS,PEOPLE,HAYS SPECIALIST RECRUITMENT LTD,456127,7.4,773695871
BEIS,Met Office,2021-05-18,04 CONTRACTORS,PEOPLE,HAYS SPECIALIST RECRUITMENT LTD,456128,7.4,773695871
BEIS,Met Office,2021-05-18,04 CONTRACTORS,PEOPLE,HAYS SPECIALIST RECRUITMENT LTD,456129,8.88,773695871
BEIS,Met Office,2021-05-18,04 CONTRACTORS,PEOPLE,HAYS SPECIALIST RECRUITMENT LTD,456130,7.4,773695871
BEIS,Met Office,2021-05-18,04 CONTRACTORS,PEOPLE,HAYS SPECIALIST RECRUITMENT LTD,456131,7.4,773695871
BEIS,Met Office,2021-05-18,04 CONTRACTORS,PEOPLE,HAYS SPECIALIST RECRUITMENT LTD,456132,5.55,773695871
BEIS,Met Office,2021-05-18,04 CONTRACTORS,PEOPLE,HAYS SPECIALIST RECRUITMENT LTD,456133,7.4,773695871
BEIS,Met Office,2021-05-18,04 CONTRACTORS,PEOPLE,HAYS SPECIALIST RECRUITMENT LTD,456134,7.4,773695871
BEIS,Met Office,2021-05-18,04 CONTRACTORS,PEOPLE,HAYS SPECIALIST RECRUITMENT LTD,456135,7.4,773695871
BEIS,Met Office,2021-05-18,04 CONTRACTORS,PEOPLE,HAYS SPECIALIST RECRUITMENT LTD,456136,5.55,773695871
BEIS,Met Office,2021-05-18,04 CONTRACTORS,PEOPLE,HAYS SPECIALIST RECRUITMENT LTD,456137,7.4,773695871
BEIS,Met Office,2021-05-18,04 CONTRACTORS,PEOPLE,HAYS SPECIALIST RECRUITMENT LTD,456138,5.55,773695871
BEIS,Met Office,2021-05-18,04 CONTRACTORS,PEOPLE,HAYS SPECIALIST RECRUITMENT LTD,456139,7.4,773695871
BEIS,Met Office,2021-05-18,04 CONTRACTORS,PEOPLE,HAYS SPECIALIST RECRUITMENT LTD,456140,7.4,773695871
BEIS,Met Office,2021-05-18,04 CONTRACTORS,PEOPLE,HAYS SPECIALIST RECRUITMENT LTD,456141,7.4,773695871
BEIS,Met Office,2021-05-18,04 CONTRACTORS,PEOPLE,HAYS SPECIALIST RECRUITMENT LTD,456142,7.4,773695871
BEIS,Met Office,2021-05-18,04 CONTRACTORS,PEOPLE,HAYS SPECIALIST RECRUITMENT LTD,456143,5.55,773695871
BEIS,Met Office,2021-05-18,04 CONTRACTORS,PEOPLE,HAYS SPECIALIST RECRUITMENT LTD,456144,5.55,773695871
BEIS,Met Office,2021-05-18,04 CONTRACTORS,PEOPLE,HAYS SPECIALIST RECRUITMENT LTD,456145,7.4,773695871
BEIS,Met Office,2021-05-18,04 CONTRACTORS,PEOPLE,HAYS SPECIALIST RECRUITMENT LTD,456146,9.61,773695871
BEIS,Met Office,2021-05-18,04 CONTRACTORS,PEOPLE,HAYS SPECIALIST RECRUITMENT LTD,456147,9.61,773695871
BEIS,Met Office,2021-05-18,04 CONTRACTORS,PEOPLE,HAYS SPECIALIST RECRUITMENT LTD,456148,9.61,773695871
BEIS,Met Office,2021-05-18,04 CONTRACTORS,PEOPLE,HAYS SPECIALIST RECRUITMENT LTD,456149,9.61,773695871
BEIS,Met Office,2021-05-18,04 CONTRACTORS,PEOPLE,HAYS SPECIALIST RECRUITMENT LTD,456150,9.61,773695871
BEIS,Met Office,2021-05-18,04 CONTRACTORS,PEOPLE,HAYS SPECIALIST RECRUITMENT LTD,456151,7.4,773695871
BEIS,Met Office,2021-05-18,04 CONTRACTORS,PEOPLE,HAYS SPECIALIST RECRUITMENT LTD,456152,9.61,773695871
BEIS,Met Office,2021-05-18,04 CONTRACTORS,PEOPLE,HAYS SPECIALIST RECRUITMENT LTD,456153,8.88,773695871
BEIS,Met Office,2021-05-18,04 CONTRACTORS,PEOPLE,HAYS SPECIALIST RECRUITMENT LTD,456154,8.88,773695871
BEIS,Met Office,2021-05-18,04 CONTRACTORS,PEOPLE,HAYS SPECIALIST RECRUITMENT LTD,456155,8.88,773695871
BEIS,Met Office,2021-05-18,04 CONTRACTORS,PEOPLE,HAYS SPECIALIST RECRUITMENT LTD,456156,8.88,773695871
BEIS,Met Office,2021-05-18,04 CONTRACTORS,PEOPLE,HAYS SPECIALIST RECRUITMENT LTD,456157,9.61,773695871
BEIS,Met Office,2021-05-18,04 CONTRACTORS,MARKETS,HAYS SPECIALIST RECRUITMENT LTD,456158,2.77,773695871
BEIS,Met Office,2021-05-18,04 CONTRACTORS,MARKETS,HAYS SPECIALIST RECRUITMENT LTD,456159,2.77,773695871
BEIS,Met Office,2021-05-18,04 CONTRACTORS,MARKETS,HAYS SPECIALIST RECRUITMENT LTD,456160,2.77,773695871
BEIS,Met Office,2021-05-18,04 CONTRACTORS,PEOPLE,HAYS SPECIALIST RECRUITMENT LTD,456161,7.4,773695871
BEIS,Met Office,2021-05-18,04 CONTRACTORS,MARKETS,HAYS SPECIALIST RECRUITMENT LTD,456162,2.77,773695871
BEIS,Met Office,2021-05-18,04 CONTRACTORS,PEOPLE,HAYS SPECIALIST RECRUITMENT LTD,456163,7.4,773695871
BEIS,Met Office,2021-05-18,04 CONTRACTORS,MARKETS,HAYS SPECIALIST RECRUITMENT LTD,456164,2.77,773695871
BEIS,Met Office,2021-05-18,04 CONTRACTORS,MARKETS,HAYS SPECIALIST RECRUITMENT LTD,456165,2.77,773695871
BEIS,Met Office,2021-05-18,04 CONTRACTORS,PEOPLE,HAYS SPECIALIST RECRUITMENT LTD,456166,7.4,773695871
BEIS,Met Office,2021-05-18,04 CONTRACTORS,MARKETS,HAYS SPECIALIST RECRUITMENT LTD,456167,2.77,773695871
BEIS,Met Office,2021-05-18,04 CONTRACTORS,MARKETS,HAYS SPECIALIST RECRUITMENT LTD,456168,2.77,773695871
BEIS,Met Office,2021-05-18,04 CONTRACTORS,MARKETS,HAYS SPECIALIST RECRUITMENT LTD,456169,2.77,773695871
BEIS,Met Office,2021-05-18,04 CONTRACTORS,PEOPLE,HAYS SPECIALIST RECRUITMENT LTD,456170,644.28,773695871
BEIS,Met Office,2021-05-18,04 CONTRACTORS,MARKETS,HAYS SPECIALIST RECRUITMENT LTD,456171,2.77,773695871
BEIS,Met Office,2021-05-18,04 CONTRACTORS,MARKETS,HAYS SPECIALIST RECRUITMENT LTD,456172,2.77,773695871
BEIS,Met Office,2021-05-18,04 CONTRACTORS,PEOPLE,HAYS SPECIALIST RECRUITMENT LTD,456173,9.61,773695871
BEIS,Met Office,2021-05-18,04 CONTRACTORS,PEOPLE,HAYS SPECIALIST RECRUITMENT LTD,456174,7.4,773695871
BEIS,Met Office,2021-05-18,04 CONTRACTORS,PEOPLE,HAYS SPECIALIST RECRUITMENT LTD,456175,7.4,773695871
BEIS,Met Office,2021-05-18,04 CONTRACTORS,PEOPLE,HAYS SPECIALIST RECRUITMENT LTD,456176,3.7,773695871
BEIS,Met Office,2021-05-18,04 CONTRACTORS,PEOPLE,HAYS SPECIALIST RECRUITMENT LTD,456177,9.61,773695871
BEIS,Met Office,2021-05-18,04 CONTRACTORS,PEOPLE,HAYS SPECIALIST RECRUITMENT LTD,456178,9.25,773695871
BEIS,Met Office,2021-05-18,04 CONTRACTORS,PEOPLE,HAYS SPECIALIST RECRUITMENT LTD,456179,5.55,773695871
BEIS,Met Office,2021-05-18,04 CONTRACTORS,PEOPLE,HAYS SPECIALIST RECRUITMENT LTD,456180,7.4,773695871
BEIS,Met Office,2021-05-18,04 CONTRACTORS,MARKETS,HAYS SPECIALIST RECRUITMENT LTD,456181,5.54,773695871
BEIS,Met Office,2021-05-18,04 CONTRACTORS,MARKETS,HAYS SPECIALIST RECRUITMENT LTD,456182,5.54,773695871
BEIS,Met Office,2021-05-18,04 CONTRACTORS,MARKETS,HAYS SPECIALIST RECRUITMENT LTD,456183,5.54,773695871
BEIS,Met Office,2021-05-18,04 CONTRACTORS,MARKETS,HAYS SPECIALIST RECRUITMENT LTD,456184,5.54,773695871
BEIS,Met Office,2021-05-18,04 CONTRACTORS,MARKETS,HAYS SPECIALIST RECRUITMENT LTD,456185,5.54,773695871
BEIS,Met Office,2021-05-18,04 CONTRACTORS,MARKETS,HAYS SPECIALIST RECRUITMENT LTD,456186,5.54,773695871
BEIS,Met Office,2021-05-18,04 CONTRACTORS,MARKETS,HAYS SPECIALIST RECRUITMENT LTD,456187,5.54,773695871
BEIS,Met Office,2021-05-18,04 CONTRACTORS,MARKETS,HAYS SPECIALIST RECRUITMENT LTD,456188,5.54,773695871
BEIS,Met Office,2021-05-18,04 CONTRACTORS,MARKETS,HAYS SPECIALIST RECRUITMENT LTD,456189,5.54,773695871
BEIS,Met Office,2021-05-18,04 CONTRACTORS,MARKETS,HAYS SPECIALIST RECRUITMENT LTD,456190,5.54,773695871
BEIS,Met Office,2021-05-18,04 CONTRACTORS,MARKETS,HAYS SPECIALIST RECRUITMENT LTD,456191,5.54,773695871
BEIS,Met Office,2021-05-18,04 CONTRACTORS,MARKETS,HAYS SPECIALIST RECRUITMENT LTD,456192,5.54,773695871
BEIS,Met Office,2021-05-18,04 CONTRACTORS,MARKETS,HAYS SPECIALIST RECRUITMENT LTD,456193,5.54,773695871
BEIS,Met Office,2021-05-18,04 CONTRACTORS,MARKETS,HAYS SPECIALIST RECRUITMENT LTD,456194,5.54,773695871
BEIS,Met Office,2021-05-18,04 CONTRACTORS,MARKETS,HAYS SPECIALIST RECRUITMENT LTD,456195,5.54,773695871
BEIS,Met Office,2021-05-18,04 CONTRACTORS,MARKETS,HAYS SPECIALIST RECRUITMENT LTD,456196,5.54,773695871
BEIS,Met Office,2021-05-18,04 CONTRACTORS,MARKETS,HAYS SPECIALIST RECRUITMENT LTD,456197,5.54,773695871
BEIS,Met Office,2021-05-18,04 CONTRACTORS,MARKETS,HAYS SPECIALIST RECRUITMENT LTD,456198,5.54,773695871
BEIS,Met Office,2021-05-18,04 CONTRACTORS,MARKETS,HAYS SPECIALIST RECRUITMENT LTD,456199,5.54,773695871
BEIS,Met Office,2021-05-18,04 CONTRACTORS,MARKETS,HAYS SPECIALIST RECRUITMENT LTD,456200,5.54,773695871
BEIS,Met Office,2021-05-18,04 CONTRACTORS,MARKETS,HAYS SPECIALIST RECRUITMENT LTD,456201,5.54,773695871
BEIS,Met Office,2021-05-18,04 CONTRACTORS,MARKETS,HAYS SPECIALIST RECRUITMENT LTD,456202,2.77,773695871
BEIS,Met Office,2021-05-18,04 CONTRACTORS,MARKETS,HAYS SPECIALIST RECRUITMENT LTD,456203,2.77,773695871
BEIS,Met Office,2021-05-18,04 CONTRACTORS,MARKETS,HAYS SPECIALIST RECRUITMENT LTD,456204,2.77,773695871
BEIS,Met Office,2021-05-18,04 CONTRACTORS,MARKETS,HAYS SPECIALIST RECRUITMENT LTD,456205,2.77,773695871
BEIS,Met Office,2021-05-18,04 CONTRACTORS,MARKETS,HAYS SPECIALIST RECRUITMENT LTD,456206,2.77,773695871
BEIS,Met Office,2021-05-18,04 CONTRACTORS,MARKETS,HAYS SPECIALIST RECRUITMENT LTD,456207,2.77,773695871
BEIS,Met Office,2021-05-18,04 CONTRACTORS,MARKETS,HAYS SPECIALIST RECRUITMENT LTD,456208,2.77,773695871
BEIS,Met Office,2021-05-18,04 CONTRACTORS,MARKETS,HAYS SPECIALIST RECRUITMENT LTD,456209,2.77,773695871
BEIS,Met Office,2021-05-20,04 CONTRACTORS,MARKETS,HAYS SPECIALIST RECRUITMENT LTD,456210,2.77,773695871
BEIS,Met Office,2021-05-20,04 CONTRACTORS,MARKETS,HAYS SPECIALIST RECRUITMENT LTD,456211,2.77,773695871
BEIS,Met Office,2021-05-20,04 CONTRACTORS,MARKETS,HAYS SPECIALIST RECRUITMENT LTD,456212,2.77,773695871
BEIS,Met Office,2021-05-20,04 CONTRACTORS,MARKETS,HAYS SPECIALIST RECRUITMENT LTD,456213,2.77,773695871
BEIS,Met Office,2021-05-20,04 CONTRACTORS,MARKETS,HAYS SPECIALIST RECRUITMENT LTD,456214,2.77,773695871
BEIS,Met Office,2021-05-20,04 CONTRACTORS,MARKETS,HAYS SPECIALIST RECRUITMENT LTD,456215,2.77,773695871
BEIS,Met Office,2021-05-20,04 CONTRACTORS,MARKETS,HAYS SPECIALIST RECRUITMENT LTD,456216,2.77,773695871
BEIS,Met Office,2021-05-20,04 CONTRACTORS,MARKETS,HAYS SPECIALIST RECRUITMENT LTD,456217,2.77,773695871
BEIS,Met Office,2021-05-20,04 CONTRACTORS,MARKETS,HAYS SPECIALIST RECRUITMENT LTD,456218,2.77,773695871
BEIS,Met Office,2021-05-20,04 CONTRACTORS,MARKETS,HAYS SPECIALIST RECRUITMENT LTD,456219,2.77,773695871
BEIS,Met Office,2021-05-20,04 CONTRACTORS,MARKETS,HAYS SPECIALIST RECRUITMENT LTD,456220,2.77,773695871
BEIS,Met Office,2021-05-20,04 CONTRACTORS,MARKETS,HAYS SPECIALIST RECRUITMENT LTD,456221,2.77,773695871
BEIS,Met Office,2021-05-20,04 CONTRACTORS,MARKETS,HAYS SPECIALIST RECRUITMENT LTD,456222,2.77,773695871
BEIS,Met Office,2021-05-20,04 CONTRACTORS,MARKETS,HAYS SPECIALIST RECRUITMENT LTD,456223,2.77,773695871
BEIS,Met Office,2021-05-20,04 CONTRACTORS,MARKETS,HAYS SPECIALIST RECRUITMENT LTD,456224,2.77,773695871
BEIS,Met Office,2021-05-20,04 CONTRACTORS,MARKETS,HAYS SPECIALIST RECRUITMENT LTD,456225,2.77,773695871
BEIS,Met Office,2021-05-20,04 CONTRACTORS,MARKETS,HAYS SPECIALIST RECRUITMENT LTD,456226,2.77,773695871
BEIS,Met Office,2021-05-20,04 CONTRACTORS,MARKETS,HAYS SPECIALIST RECRUITMENT LTD,456227,2.77,773695871
BEIS,Met Office,2021-05-20,04 CONTRACTORS,MARKETS,HAYS SPECIALIST RECRUITMENT LTD,456228,2.77,773695871
BEIS,Met Office,2021-05-20,04 CONTRACTORS,MARKETS,HAYS SPECIALIST RECRUITMENT LTD,456229,2.77,773695871
BEIS,Met Office,2021-05-20,04 CONTRACTORS,MARKETS,HAYS SPECIALIST RECRUITMENT LTD,456230,2.77,773695871
BEIS,Met Office,2021-05-20,04 CONTRACTORS,MARKETS,HAYS SPECIALIST RECRUITMENT LTD,456231,5.54,773695871
BEIS,Met Office,2021-05-20,04 CONTRACTORS,MARKETS,HAYS SPECIALIST RECRUITMENT LTD,456232,5.54,773695871
BEIS,Met Office,2021-05-20,04 CONTRACTORS,MARKETS,HAYS SPECIALIST RECRUITMENT LTD,456233,5.54,773695871
BEIS,Met Office,2021-05-20,04 CONTRACTORS,MARKETS,HAYS SPECIALIST RECRUITMENT LTD,456234,5.55,773695871
BEIS,Met Office,2021-05-20,04 CONTRACTORS,MARKETS,HAYS SPECIALIST RECRUITMENT LTD,456235,2.77,773695871
BEIS,Met Office,2021-05-20,04 CONTRACTORS,PEOPLE,HAYS SPECIALIST RECRUITMENT LTD,456236,129.45,773695871
BEIS,Met Office,2021-05-20,04 CONTRACTORS,PEOPLE,HAYS SPECIALIST RECRUITMENT LTD,456237,7.4,773695871
BEIS,Met Office,2021-05-20,04 CONTRACTORS,MARKETS,HAYS SPECIALIST RECRUITMENT LTD,456238,5.54,773695871
BEIS,Met Office,2021-05-20,04 CONTRACTORS,MARKETS,HAYS SPECIALIST RECRUITMENT LTD,456239,5.54,773695871
BEIS,Met Office,2021-05-20,04 CONTRACTORS,MARKETS,HAYS SPECIALIST RECRUITMENT LTD,456240,2.77,773695871
BEIS,Met Office,2021-05-20,04 CONTRACTORS,MARKETS,HAYS SPECIALIST RECRUITMENT LTD,456241,2.77,773695871
BEIS,Met Office,2021-05-20,04 CONTRACTORS,MARKETS,HAYS SPECIALIST RECRUITMENT LTD,456242,2.77,773695871
BEIS,Met Office,2021-05-20,04 CONTRACTORS,MARKETS,HAYS SPECIALIST RECRUITMENT LTD,456243,2.77,773695871
BEIS,Met Office,2021-05-20,04 CONTRACTORS,MARKETS,HAYS SPECIALIST RECRUITMENT LTD,456244,2.77,773695871
BEIS,Met Office,2021-05-20,04 CONTRACTORS,MARKETS,HAYS SPECIALIST RECRUITMENT LTD,456245,2.77,773695871
BEIS,Met Office,2021-05-20,04 CONTRACTORS,TECHNOLOGY AND CIO,HAYS SPECIALIST RECRUITMENT LTD,456246,460.21,773695871
BEIS,Met Office,2021-05-25,04 CONTRACTORS,TECHNOLOGY AND CIO,GCS IT RECRUITMENT SPECIALISTS LTD,456247,16500,896156575
BEIS,Met Office,2021-05-18,11 SERVICES,CHIEF FINANCIAL OFFICER,BT CONFERENCING,456249,67.41,245719348
BEIS,Met Office,2021-05-18,11 SERVICES,CHIEF FINANCIAL OFFICER,JERSEY TELECOM,456250,2566.2,NOTVATREG
BEIS,Met Office,2021-05-18,06 ACCOMMODATION,CHIEF FINANCIAL OFFICER,PERTH AND KINROSS COUNCIL,456257,4116,-
BEIS,Met Office,2021-05-25,11 SERVICES,CHIEF FINANCIAL OFFICER,CABINET OFFICE - COF LEAD ACCOUNT,456258,7700,-
BEIS,Met Office,2021-05-18,06 ACCOMMODATION,CHIEF FINANCIAL OFFICER,Valuation Office Agency,456293,1000,888848141
BEIS,Met Office,2021-05-18,06 ACCOMMODATION,CHIEF FINANCIAL OFFICER,Aberdeenshire Council,456294,3234,6637545408
BEIS,Met Office,2021-05-18,06 ACCOMMODATION,CHIEF FINANCIAL OFFICER,Aberdeenshire Council,456295,3234,6637545408
BEIS,Met Office,2021-05-18,13 MISCELLANEOUS,CHIEF FINANCIAL OFFICER,HEALIX INSURANCE SERVICES LTD,456296,2018.67,-
BEIS,Met Office,2021-05-18,13 MISCELLANEOUS,CHIEF FINANCIAL OFFICER,HEALIX INTERNATIONAL,456297,522.1,127632909
BEIS,Met Office,2021-05-18,11 SERVICES,OFFICE OF THE CEO,OSBORNE CLARKE LLP,456298,3300,GB138187353
BEIS,Met Office,2021-05-18,06 ACCOMMODATION,CHIEF FINANCIAL OFFICER,Aberdeenshire Council,456299,4655,6637545408
BEIS,Met Office,2021-05-18,03 STAFF COSTS T&S,CHIEF FINANCIAL OFFICER,ENTERPRISE RENT A CAR UK LTD,456301,285.68,215557314
BEIS,Met Office,2021-05-25,04 CONTRACTORS,TECHNOLOGY AND CIO,HAYS SPECIALIST RECRUITMENT LTD,456308,9.18,773695871
BEIS,Met Office,2021-05-25,04 CONTRACTORS,TECHNOLOGY AND CIO,HAYS SPECIALIST RECRUITMENT LTD,456309,9.06,773695871
BEIS,Met Office,2021-05-25,04 CONTRACTORS,TECHNOLOGY AND CIO,HAYS SPECIALIST RECRUITMENT LTD,456310,9.18,773695871
BEIS,Met Office,2021-05-25,04 CONTRACTORS,TECHNOLOGY AND CIO,HAYS SPECIALIST RECRUITMENT LTD,456311,8.88,773695871
BEIS,Met Office,2021-05-25,04 CONTRACTORS,TECHNOLOGY AND CIO,HAYS SPECIALIST RECRUITMENT LTD,456312,8.88,773695871
BEIS,Met Office,2021-05-25,04 CONTRACTORS,TECHNOLOGY AND CIO,HAYS SPECIALIST RECRUITMENT LTD,456313,8.88,773695871
BEIS,Met Office,2021-05-25,04 CONTRACTORS,TECHNOLOGY AND CIO,HAYS SPECIALIST RECRUITMENT LTD,456314,8.88,773695871
BEIS,Met Office,2021-05-25,04 CONTRACTORS,TECHNOLOGY AND CIO,HAYS SPECIALIST RECRUITMENT LTD,456315,8.88,773695871
BEIS,Met Office,2021-05-25,04 CONTRACTORS,TECHNOLOGY AND CIO,HAYS SPECIALIST RECRUITMENT LTD,456316,9.18,773695871
BEIS,Met Office,2021-05-25,04 CONTRACTORS,PEOPLE,HAYS SPECIALIST RECRUITMENT LTD,456317,5.55,773695871
BEIS,Met Office,2021-05-25,04 CONTRACTORS,PEOPLE,HAYS SPECIALIST RECRUITMENT LTD,456319,5.54,773695871
BEIS,Met Office,2021-05-25,04 CONTRACTORS,PEOPLE,HAYS SPECIALIST RECRUITMENT LTD,456320,5.54,773695871
BEIS,Met Office,2021-05-25,04 CONTRACTORS,PEOPLE,HAYS SPECIALIST RECRUITMENT LTD,456321,5.54,773695871
BEIS,Met Office,2021-05-25,04 CONTRACTORS,PEOPLE,HAYS SPECIALIST RECRUITMENT LTD,456322,5.54,773695871
BEIS,Met Office,2021-05-25,04 CONTRACTORS,PEOPLE,HAYS SPECIALIST RECRUITMENT LTD,456323,5.54,773695871
BEIS,Met Office,2021-05-25,04 CONTRACTORS,PEOPLE,HAYS SPECIALIST RECRUITMENT LTD,456324,5.54,773695871
BEIS,Met Office,2021-05-25,04 CONTRACTORS,PEOPLE,HAYS SPECIALIST RECRUITMENT LTD,456325,5.54,773695871
BEIS,Met Office,2021-05-25,04 CONTRACTORS,PEOPLE,HAYS SPECIALIST RECRUITMENT LTD,456326,5.54,773695871
BEIS,Met Office,2021-05-25,04 CONTRACTORS,PEOPLE,HAYS SPECIALIST RECRUITMENT LTD,456327,5.54,773695871
BEIS,Met Office,2021-05-25,04 CONTRACTORS,PEOPLE,HAYS SPECIALIST RECRUITMENT LTD,456328,5.55,773695871
BEIS,Met Office,2021-05-25,04 CONTRACTORS,PEOPLE,HAYS SPECIALIST RECRUITMENT LTD,456329,5.55,773695871
BEIS,Met Office,2021-05-18,11 SERVICES,CHIEF FINANCIAL OFFICER,Vodafone Ltd,456330,367.99,569953277
BEIS,Met Office,2021-05-25,04 CONTRACTORS,PEOPLE,HAYS SPECIALIST RECRUITMENT LTD,456331,5.54,773695871
BEIS,Met Office,2021-05-25,04 CONTRACTORS,PEOPLE,HAYS SPECIALIST RECRUITMENT LTD,456332,5.55,773695871
BEIS,Met Office,2021-05-18,11 SERVICES,SERVICES,SOFTWIRE TECHNOLOGY LIMITED,456340,2520,752 1253 57
BEIS,Met Office,2021-05-18,11 SERVICES,PEOPLE,ADJUST,456341,395,-
BEIS,Met Office,2021-05-18,08 SOFTWARE LICENCES,PROGRAMMES,MICRO FOCUS SOFTWARE UK LTD,456342,406.99,GB 275 5061 96
BEIS,Met Office,2021-05-20,11 SERVICES,MARKETS,SOFTWIRE TECHNOLOGY LIMITED,456344,63850,752 1253 57
BEIS,Met Office,2021-05-20,07 EQUIPMENT,SERVICES,PLANET OCEAN LTD,456345,2500,834477212
BEIS,Met Office,2021-05-20,11 SERVICES,SERVICES,PLANET OCEAN LTD,456345,216,834477212
BEIS,Met Office,2021-05-20,13 MISCELLANEOUS,SERVICES,PLANET OCEAN LTD,456345,98,834477212
BEIS,Met Office,2021-05-20,11 SERVICES,SCIENCE,University College London,456346,25000,524371168
BEIS,Met Office,2021-05-18,07 EQUIPMENT,SERVICES,QUASAR MICROWAVE TECHNOLOGY LTD,456347,195.47,209385203
BEIS,Met Office,2021-05-18,07 EQUIPMENT,SERVICES,QUASAR MICROWAVE TECHNOLOGY LTD,456347,468,209385203
BEIS,Met Office,2021-05-18,07 EQUIPMENT,SERVICES,QUASAR MICROWAVE TECHNOLOGY LTD,456347,16,209385203
BEIS,Met Office,2021-05-27,11 SERVICES,PEOPLE,MOMENTUM INCORPORATED,456348,800,598958541
BEIS,Met Office,2021-05-18,11 SERVICES,TECHNOLOGY AND CIO,CLOUDREACH EUROPE LIMITED,456349,1976.33,978187168
BEIS,Met Office,2021-05-20,13 MISCELLANEOUS,CHIEF FINANCIAL OFFICER,BANNER GROUP LIMITED,456350,40.58,GB391085740
BEIS,Met Office,2021-05-20,11 SERVICES,TECHNOLOGY AND CIO,Ibm United Kingdom Ltd,456352,6184.16,107328000
BEIS,Met Office,2021-05-18,11 SERVICES,CHIEF FINANCIAL OFFICER,ALLSTAR BUSINESS SOLUTIONS LTD,456353,2106.78,747880191
BEIS,Met Office,2021-05-20,11 SERVICES,CHIEF FINANCIAL OFFICER,GIBRALTAR NYNEX COMMUNICATIONS LTD,456354,702,NOVAT
BEIS,Met Office,2021-05-20,11 SERVICES,MARKETS,SOCIAL SENSING LTD,456355,2758,-
BEIS,Met Office,2021-05-18,11 SERVICES,PEOPLE,CIVICA UK LIMITED,456356,7162.66,391171065
BEIS,Met Office,2021-05-18,11 SERVICES,PEOPLE,CIVICA UK LIMITED,456357,7162.66,391171065
BEIS,Met Office,2021-05-18,11 SERVICES,PEOPLE,CIVICA UK LIMITED,456358,7162.66,391171065
BEIS,Met Office,2021-05-18,13 MISCELLANEOUS,CHIEF FINANCIAL OFFICER,POSTURITE (UK) LTD,456359,50,583565114
BEIS,Met Office,2021-05-20,11 SERVICES,CHIEF FINANCIAL OFFICER,BT GLOBAL SERVICES,456360,11216,245719348
BEIS,Met Office,2021-05-20,11 SERVICES,PROGRAMMES,BJSS LIMITED,456361,85712.5,613295452
BEIS,Met Office,2021-05-20,11 SERVICES,PROGRAMMES,BJSS LIMITED,456362,10468.75,613295452
BEIS,Met Office,2021-05-18,12 INTERNATIONAL,MARKETS,APPLIED SATELLITE TECHNOLOGY SYSTEMS LTD,456364,29.97,720108683
BEIS,Met Office,2021-05-18,11 SERVICES,SERVICES,APPLIED SATELLITE TECHNOLOGY SYSTEMS LTD,456365,29.97,720108683
BEIS,Met Office,2021-05-18,11 SERVICES,SERVICES,APPLIED SATELLITE TECHNOLOGY SYSTEMS LTD,456366,175.91,720108683
BEIS,Met Office,2021-05-20,11 SERVICES,SERVICES,APPLIED SATELLITE TECHNOLOGY SYSTEMS LTD,456367,10121.07,720108683
BEIS,Met Office,2021-05-20,11 SERVICES,PROGRAMMES,CAMBRIDGE ECONOMETRICS LTD,456369,30000,1916825
BEIS,Met Office,2021-05-20,11 SERVICES,PROGRAMMES,CAMBRIDGE ECONOMETRICS LTD,456371,11412,1916825
BEIS,Met Office,2021-05-20,11 SERVICES,SERVICES,APPLIED SATELLITE TECHNOLOGY SYSTEMS LTD,456373,266.32,720108683
BEIS,Met Office,2021-05-25,04 CONTRACTORS,CHIEF FINANCIAL OFFICER,JOBSEEKERS RECRUITMENT SERVICES LTD,456390,674.88,130 1297 14
BEIS,Met Office,2021-05-25,04 CONTRACTORS,OFFICE OF THE CEO,JOBSEEKERS RECRUITMENT SERVICES LTD,456391,656.64,130 1297 14
BEIS,Met Office,2021-05-25,04 CONTRACTORS,PEOPLE,JOBSEEKERS RECRUITMENT SERVICES LTD,456392,676.36,130 1297 14
BEIS,Met Office,2021-05-25,04 CONTRACTORS,MARKETS,JOBSEEKERS RECRUITMENT SERVICES LTD,456393,674.88,130 1297 14
BEIS,Met Office,2021-05-25,11 SERVICES,TECHNOLOGY AND CIO,BOXXE,456395,1936,734245248
BEIS,Met Office,2021-05-25,04 CONTRACTORS,PEOPLE,JOBSEEKERS RECRUITMENT SERVICES LTD,456396,676.36,130 1297 14
BEIS,Met Office,2021-05-25,04 CONTRACTORS,MARKETS,JOBSEEKERS RECRUITMENT SERVICES LTD,456397,538.08,130 1297 14
BEIS,Met Office,2021-05-25,04 CONTRACTORS,CHIEF FINANCIAL OFFICER,JOBSEEKERS RECRUITMENT SERVICES LTD,456398,410.4,130 1297 14
BEIS,Met Office,2021-05-20,11 SERVICES,CHIEF FINANCIAL OFFICER,INTEROUTE COMMUNICATIONS LIMITED,456399,4931.94,832 7071 39
BEIS,Met Office,2021-05-25,STOCK,SERVICES,DHL INTERNATIONAL (UK) LTD,456402,369.42,751812341
BEIS,Met Office,2021-05-25,04 CONTRACTORS,PEOPLE,HAYS SPECIALIST RECRUITMENT LTD,456403,262.16,773695871
BEIS,Met Office,2021-05-20,11 SERVICES,SCIENCE,University Of Exeter,456443,12500,142047795
BEIS,Met Office,2021-05-20,INFORMATION TECHNOLOGY,TECHNOLOGY AND CIO,APC TECHNOLOGY GROUP PLC,456444,2795,GB 373 584 720
BEIS,Met Office,2021-05-20,INFORMATION TECHNOLOGY,TECHNOLOGY AND CIO,APC TECHNOLOGY GROUP PLC,456444,9190,GB 373 584 720
BEIS,Met Office,2021-05-20,INFORMATION TECHNOLOGY,TECHNOLOGY AND CIO,APC TECHNOLOGY GROUP PLC,456444,310,GB 373 584 720
BEIS,Met Office,2021-05-25,11 SERVICES,PROGRAMMES,UNIVERSITY OF READING,456445,62245.38,200012659
BEIS,Met Office,2021-05-20,10 EQUIPMENT MAINTENANCE,SERVICES,YOUNG CALIBRATION LIMITED,456446,180,673900720
BEIS,Met Office,2021-05-20,11 SERVICES,SERVICES,YOUNG CALIBRATION LIMITED,456446,15,673900720
BEIS,Met Office,2021-05-20,13 MISCELLANEOUS,CHIEF FINANCIAL OFFICER,ARTHUR J. GALLAGHER INSURANCE BROKERS LIMITED,456447,1854.09,GB484746209
BEIS,Met Office,2021-05-20,11 SERVICES,PEOPLE,ADJUST,456449,990,-
BEIS,Met Office,2021-05-20,06 ACCOMMODATION,CHIEF FINANCIAL OFFICER,DALCOUR MACLAREN LTD,456452,1500,823 6484 20
BEIS,Met Office,2021-05-20,06 ACCOMMODATION,CHIEF FINANCIAL OFFICER,PAUL BAIRD,456453,1846.37,251954452
BEIS,Met Office,2021-05-20,06 ACCOMMODATION,CHIEF FINANCIAL OFFICER,REDACTED PERSONAL DATA,456454,100,NOTVATREGD
BEIS,Met Office,2021-05-20,06 ACCOMMODATION,CHIEF FINANCIAL OFFICER,A BOTHROYD,456455,1955,N/A
BEIS,Met Office,2021-05-20,06 ACCOMMODATION,CHIEF FINANCIAL OFFICER,REDACTED PERSONAL DATA,456456,200,-
BEIS,Met Office,2021-05-20,06 ACCOMMODATION,CHIEF FINANCIAL OFFICER,OUR LADY OF BETHLEHEM ABBEY,456457,500,-
BEIS,Met Office,2021-05-20,06 ACCOMMODATION,MARKETS,Hartlepool Borough Council,456458,85,259087918
BEIS,Met Office,2021-05-20,06 ACCOMMODATION,CHIEF FINANCIAL OFFICER,V & M MORRIS AND SON,456459,750,-
BEIS,Met Office,2021-05-20,06 ACCOMMODATION,CHIEF FINANCIAL OFFICER,REDACTED PERSONAL DATA,456466,696.65,-
BEIS,Met Office,2021-05-20,06 ACCOMMODATION,CHIEF FINANCIAL OFFICER,Welsh Government,456467,750,GD 8888 350 56
BEIS,Met Office,2021-05-20,13 MISCELLANEOUS,SERVICES,AUTOMATED DOCUMENT SERVICES LTD,456470,8201.1,105353449
BEIS,Met Office,2021-05-25,11 SERVICES,PEOPLE,REDACTED PERSONAL DATA,456477,5013,143043312
BEIS,Met Office,2021-05-25,11 SERVICES,PEOPLE,REDACTED PERSONAL DATA,456478,660,143043312
BEIS,Met Office,2021-05-20,11 SERVICES,PEOPLE,REDACTED PERSONAL DATA,456479,8881,143043312
BEIS,Met Office,2021-05-27,04 CONTRACTORS,PEOPLE,HAYS SPECIALIST RECRUITMENT LTD,456480,371.7,773695871
BEIS,Met Office,2021-05-26,TRADE CREDITORS,OTHER,NATWEST COMMERCIAL CARDS DIVISION,456483,106839.97,N/A
BEIS,Met Office,2021-05-26,07 EQUIPMENT,CHIEF FINANCIAL OFFICER,NATWEST COMMERCIAL CARDS DIVISION,456484,8494.55,N/A
BEIS,Met Office,2021-05-25,11 SERVICES,CHIEF FINANCIAL OFFICER,DIGITAL COMMUNICATIONS SYSTEMS LIMITED,456498,4172.84,GB 556 1971 19
BEIS,Met Office,2021-05-25,12 INTERNATIONAL,MARKETS,FCDO SERVICES,456499,4816.07,888848729
BEIS,Met Office,2021-05-25,12 INTERNATIONAL,MARKETS,FCDO SERVICES,456499,2838.87,888848729
BEIS,Met Office,2021-05-25,11 SERVICES,PROGRAMMES,University of Edinburgh,456500,188968.85,592950700
BEIS,Met Office,2021-05-25,06 ACCOMMODATION,CHIEF FINANCIAL OFFICER,SHETLAND CLEANING SERVICES,456501,739.97,430028404
BEIS,Met Office,2021-05-25,06 ACCOMMODATION,CHIEF FINANCIAL OFFICER,South West Water Ltd,456502,63.01,236873674
BEIS,Met Office,2021-05-25,10 EQUIPMENT MAINTENANCE,TECHNOLOGY AND CIO,Hewlett Packard Ltd,456503,175845.66,314149679
BEIS,Met Office,2021-05-25,10 EQUIPMENT MAINTENANCE,TECHNOLOGY AND CIO,Hewlett Packard Ltd,456503,137453,314149679
BEIS,Met Office,2021-05-25,11 SERVICES,SERVICES,Landmark Information Group Ltd,456506,82319,634509735
BEIS,Met Office,2021-05-25,11 SERVICES,SERVICES,Landmark Information Group Ltd,456507,73231.5,634509735
BEIS,Met Office,2021-05-25,06 ACCOMMODATION,CHIEF FINANCIAL OFFICER,Shropshire Council,456509,12225.5,-
BEIS,Met Office,2021-05-25,04 CONTRACTORS,TECHNOLOGY AND CIO,FDM GROUP LIMITED,456510,900,583540529
BEIS,Met Office,2021-05-27,04 CONTRACTORS,PEOPLE,MATRIX SCM LIMITED,456511,210474.09,249 5734 68
BEIS,Met Office,2021-05-25,06 ACCOMMODATION,CHIEF FINANCIAL OFFICER,Devon County Council,456512,84541,142208113
BEIS,Met Office,2021-05-25,10 EQUIPMENT MAINTENANCE,TECHNOLOGY AND CIO,AXIAL SYSTEMS LTD,456513,9503.1,927444704
BEIS,Met Office,2021-05-25,11 SERVICES,MARKETS,LTS INTERNATIONAL,456515,6963.54,267763712
BEIS,Met Office,2021-05-25,06 ACCOMMODATION,CHIEF FINANCIAL OFFICER,STONE HILL PARK LTD,456516,176.56,196461180
BEIS,Met Office,2021-05-25,11 SERVICES,MARKETS,WALNUT UNLIMITED LIMITED,456565,5900,648857968
BEIS,Met Office,2021-05-27,11 SERVICES,PROGRAMMES,DRIVE CREATIVE STUDIO LTD,456566,1120,167656860
BEIS,Met Office,2021-05-27,06 ACCOMMODATION,CHIEF FINANCIAL OFFICER,Mitie Landscapes Ltd,456567,5931.07,GB 416 706 654
BEIS,Met Office,2021-05-25,11 SERVICES,PEOPLE,EDENRED - CHILDCARE VOUCHERS,456570,16255.5,649 503 520
BEIS,Met Office,2021-05-25,11 SERVICES,MARKETS,DBS FINANCE RECEIPTS CTS,456572,13522.62,888805068
BEIS,Met Office,2021-05-27,08 SOFTWARE LICENCES,CHIEF FINANCIAL OFFICER,CEMAR,456576,90,915042161
BEIS,Met Office,2021-05-25,11 SERVICES,CHIEF FINANCIAL OFFICER,SURE SOUTH ATLANTIC LTD,456577,4743,-
BEIS,Met Office,2021-05-25,PLANT AND EQUIPMENT,CHIEF FINANCIAL OFFICER,HICKMAN & SMITH ARCHITECTS LTD.,456578,700,175031919
BEIS,Met Office,2021-05-27,08 SOFTWARE LICENCES,CHIEF FINANCIAL OFFICER,CEMAR,456579,450,915042161
BEIS,Met Office,2021-05-25,03 STAFF COSTS T&S,CHIEF FINANCIAL OFFICER,ENTERPRISE RENT A CAR UK LTD,456580,1061.79,215557314
BEIS,Met Office,2021-05-27,06 ACCOMMODATION,CHIEF FINANCIAL OFFICER,CBRE MANAGED SERVICES LTD,456581,27666.9,853936883
BEIS,Met Office,2021-05-25,FIXTURE & FITTINGS,SERVICES,FMS INTERIOR SERVICES LTD,456583,87,922056940
BEIS,Met Office,2021-05-25,FIXTURE & FITTINGS,SERVICES,FMS INTERIOR SERVICES LTD,456583,425,922056940
BEIS,Met Office,2021-05-25,FIXTURE & FITTINGS,SERVICES,FMS INTERIOR SERVICES LTD,456583,955.71,922056940
BEIS,Met Office,2021-05-25,FIXTURE & FITTINGS,SERVICES,FMS INTERIOR SERVICES LTD,456583,117.6,922056940
BEIS,Met Office,2021-05-25,FIXTURE & FITTINGS,SERVICES,FMS INTERIOR SERVICES LTD,456583,36.6,922056940
BEIS,Met Office,2021-05-25,FIXTURE & FITTINGS,SERVICES,FMS INTERIOR SERVICES LTD,456583,640,922056940
BEIS,Met Office,2021-05-25,FIXTURE & FITTINGS,SERVICES,FMS INTERIOR SERVICES LTD,456583,201,922056940
BEIS,Met Office,2021-05-25,FIXTURE & FITTINGS,SERVICES,FMS INTERIOR SERVICES LTD,456583,131.08,922056940
BEIS,Met Office,2021-05-25,FIXTURE & FITTINGS,SERVICES,FMS INTERIOR SERVICES LTD,456583,164.13,922056940
BEIS,Met Office,2021-05-25,FIXTURE & FITTINGS,SERVICES,FMS INTERIOR SERVICES LTD,456583,199.33,922056940
BEIS,Met Office,2021-05-27,06 ACCOMMODATION,CHIEF FINANCIAL OFFICER,CBRE MANAGED SERVICES LTD,456584,5870.58,853936883
BEIS,Met Office,2021-05-27,06 ACCOMMODATION,CHIEF FINANCIAL OFFICER,Biffa Waste Services Ltd,456593,640,537911627
BEIS,Met Office,2021-05-27,04 CONTRACTORS,OFFICE OF THE CEO,JOBSEEKERS RECRUITMENT SERVICES LTD,456604,601.92,130 1297 14
BEIS,Met Office,2021-05-27,04 CONTRACTORS,PEOPLE,JOBSEEKERS RECRUITMENT SERVICES LTD,456605,548.4,130 1297 14
BEIS,Met Office,2021-05-27,04 CONTRACTORS,MARKETS,JOBSEEKERS RECRUITMENT SERVICES LTD,456606,674.88,130 1297 14
BEIS,Met Office,2021-05-27,04 CONTRACTORS,PEOPLE,JOBSEEKERS RECRUITMENT SERVICES LTD,456607,676.36,130 1297 14
BEIS,Met Office,2021-05-27,04 CONTRACTORS,CHIEF FINANCIAL OFFICER,JOBSEEKERS RECRUITMENT SERVICES LTD,456608,629.28,130 1297 14
BEIS,Met Office,2021-05-27,04 CONTRACTORS,MARKETS,JOBSEEKERS RECRUITMENT SERVICES LTD,456609,674.88,130 1297 14
BEIS,Met Office,2021-05-27,07 EQUIPMENT,TECHNOLOGY AND CIO,COMPUTACENTER (UK) LTD,456612,682.26,490334648
BEIS,Met Office,2021-05-27,11 SERVICES,CHIEF FINANCIAL OFFICER,TELEFONICA O2 UK LIMITED,456613,50,778603785
BEIS,Met Office,2021-05-27,03 STAFF COSTS T&S,CHIEF FINANCIAL OFFICER,ENTERPRISE RENT A CAR UK LTD,456647,387.41,215557314
BEIS,Met Office,2021-05-27,06 ACCOMMODATION,MARKETS,HIGHLANDS & ISLANDS AIRPORTS LTD.,456654,-224.36,945667772
BEIS,Met Office,2021-05-27,11 SERVICES,MARKETS,JCT Ltd,456656,1740,714 3761 44
BEIS,Met Office,2021-05-27,10 EQUIPMENT MAINTENANCE,TECHNOLOGY AND CIO,COMPUTACENTER (UK) LTD,456658,3033.54,490334648
BEIS,Met Office,2021-05-27,13 MISCELLANEOUS,PEOPLE,BROADBEAN TECHNOLOGY LTD,456663,3500,GB184088778
